{"text_format":"1","workbook":"xlsx","n_sheets":4,"sheets":["Cover Sheet","Deferred Only","Housing Tax Credit","CheckBoxLinks"],"not_rendered":{"charts":0,"images":1,"macros":1,"external_links":0,"defined_names":479,"comments":0,"pivot_tables":0},"unopened":[],"bounds":{"document_bytes":16777216,"sheet_cells":100000,"rows_first":2000,"rows_last":500,"rows_between":2000,"halvings":0,"cell_chars":16384,"cell_head_chars":4096},"cells_cut":0,"cells_raw":0,"read":"whole","date_system":"1900"}

{"sheet":"Cover Sheet","index":0,"n_rows":30,"n_cols":6,"rows_kept":30,"cut":false,"hidden":false,"merged":[[3,4,3,12],[4,4,4,12],[6,4,6,12],[16,3,16,16]]}
[]
[]
[]
[null,null,null,null,"Multifamily 2017 Housing Tax Credit Self-Scoring Worksheet"]
[null,null,null,null,"and 2016 Request for Proposals Deferred Loan Priority Checklist"]
[null,null,null,null,null,"Updated 2016 12 02"]
[null,null,null,null,"Indicate the type of funding you are applying for:"]
[]
[null,null,null,null,null,"Minnesota Housing Tax Credits Only Request"]
[]
[null,null,null,null,null,"Deferred Loan Only Request"]
[]
[null,null,null,null,null,"Both - Minnesota Housing Tax Credits and a Deferred Loan Request"]
[]
[]
[null,null,null,"INSTRUCTIONS"]
[null,null,null,"When you indicate the type of funding you are applying for, the applicable Housing Tax Credit Self-Scoring Worksheet or Deferred Loan Priority Checklist sheet will open.  If you go back to the Cover Sheet and change your selection, the first sheet you opened will be hidden and the new sheet will open.  Minnesota Housing will only review the submitted information based on the selection made on the Cover Sheet."]
[]
[null,null,null,"The Self-Scoring Worksheet and Deferred Loan Priority Checklist are color coded to assist applicants in filling out the proper information."]
[]
[null,null,null,null,null,"Light blue cells can be filled out by the applicant."]
[]
[null,null,null,null,null,"Grey cells cannot be edited. An error message will appear if you try to click on or enter data in grey cells."]
[]
[null,null,null,null,null,"Cells may turn grey if:"]
[null,null,null,null,null,"- You filled in another cell that is mutually exclusive of this cell, or"]
[null,null,null,null,null,"- You have not completed the necessary associated information in a previous cell. "]
[]
[null,null,null,null,null,"If you need to edit a grey cell, you may need to delete or edit data in a previous cell(s) before it becomes editable and turns blue. "]
[null,null,null,null,null,"See the help text to identify which cells contain these dependencies."]

{"sheet":"Deferred Only","index":1,"n_rows":380,"n_cols":15,"rows_kept":380,"cut":false,"hidden":true,"merged":[[379,1,379,13],[374,1,374,13],[44,1,44,13],[33,1,33,13],[28,1,28,13],[29,1,29,13],[30,1,30,13],[31,1,31,13],[32,1,32,13],[356,2,356,13],[357,2,357,13],[358,2,358,13],[359,2,359,13],[346,2,346,13],[348,2,348,13],[349,2,349,13],[351,0,351,13],[352,1,352,13],[353,2,353,13],[340,1,340,13],[341,2,341,13],[342,2,342,13],[326,2,326,13],[327,2,327,13],[328,2,328,13],[329,2,329,13],[330,2,330,13],[318,2,318,13],[319,2,319,13],[320,2,320,13],[321,2,321,13],[323,2,323,13],[324,2,324,13],[322,2,322,13],[21,1,21,13],[22,1,22,13],[34,1,34,13],[23,1,23,13],[25,2,25,13],[26,1,26,13],[27,2,27,13],[24,1,24,13],[325,2,325,13],[312,2,312,13],[313,2,313,13],[149,0,149,13],[52,1,52,13],[123,1,123,13],[314,2,314,13],[315,2,315,13],[316,2,316,13],[317,2,317,13],[305,2,305,13],[307,2,307,13],[308,2,308,13],[309,2,309,13],[310,1,310,13],[311,2,311,13],[373,1,373,13],[366,2,366,13],[367,2,367,13],[368,2,368,13],[370,0,370,13],[371,1,371,13],[372,1,372,13],[360,2,360,13],[361,2,361,13],[362,2,362,13],[363,2,363,13],[364,2,364,13],[365,2,365,13],[369,1,369,13],[354,2,354,13],[355,2,355,13],[344,2,344,13],[345,2,345,13],[331,2,331,13],[333,0,333,13],[334,1,334,13],[335,1,335,13],[337,1,337,13],[339,0,339,13],[343,2,343,13],[306,2,306,13],[299,2,299,13],[300,2,300,13],[301,2,301,13],[302,2,302,13],[303,2,303,13],[304,2,304,13],[291,2,291,13],[294,0,294,13],[295,1,295,13],[296,2,296,13],[297,2,297,13],[298,1,298,13],[292,2,292,13],[283,1,283,13],[284,2,284,13],[285,3,285,13],[286,3,286,13],[287,3,287,13],[289,2,289,13],[276,4,276,13],[277,4,277,13],[278,4,278,13],[279,4,279,13],[281,4,281,13],[282,4,282,13],[270,4,270,13],[271,1,271,13],[272,1,272,13],[273,1,273,13],[274,2,274,13],[275,3,275,13],[264,4,264,13],[265,4,265,13],[266,4,266,13],[267,4,267,13],[268,4,268,13],[269,4,269,13],[259,2,259,13],[260,3,260,13],[261,4,261,13],[262,4,262,13],[263,4,263,13],[252,4,252,13],[253,4,253,13],[254,4,254,13],[255,2,255,13],[257,4,257,13],[258,4,258,13],[246,1,246,13],[247,1,247,13],[248,2,248,13],[249,3,249,13],[250,4,250,13],[251,4,251,13],[238,1,238,13],[240,0,240,13],[241,1,241,13],[242,1,242,13],[244,0,244,13],[245,1,245,13],[231,3,231,13],[232,1,232,13],[233,2,233,13],[234,2,234,13],[236,0,236,13],[237,1,237,13],[225,1,225,13],[226,2,226,13],[227,3,227,13],[228,3,228,13],[229,2,229,13],[230,3,230,13],[219,3,219,13],[220,1,220,13],[221,2,221,13],[222,3,222,13],[223,2,223,13],[224,3,224,13],[213,0,213,13],[214,1,214,13],[215,2,215,13],[216,2,216,13],[217,3,217,13],[218,3,218,13],[206,5,206,13],[207,5,207,13],[208,5,208,13],[209,5,209,13],[210,5,210,13],[211,1,211,13],[201,4,201,5],[201,7,201,8],[201,10,201,11],[203,4,203,13],[204,4,204,13],[205,5,205,13],[185,2,185,13],[186,2,186,13],[198,2,198,13],[199,2,199,13],[200,4,200,5],[200,7,200,8],[200,10,200,11],[197,2,197,3],[189,4,189,13],[190,4,190,13],[192,4,192,13],[193,4,193,13],[194,4,194,13],[195,4,195,13],[196,4,196,13],[170,1,170,13],[171,2,171,13],[174,2,174,13],[175,3,175,13],[180,3,180,13],[184,1,184,13],[183,4,183,5],[179,4,179,5],[172,1,172,13],[157,4,157,5],[157,7,157,8],[157,10,157,11],[167,0,167,13],[168,1,168,13],[169,1,169,13],[150,1,150,13],[151,1,151,13],[153,0,153,13],[154,1,154,13],[155,1,155,13],[156,4,156,5],[156,7,156,8],[156,10,156,11],[152,1,152,13],[166,1,166,13],[140,4,140,5],[140,7,140,8],[140,10,140,11],[145,1,145,13],[146,2,146,13],[148,0,148,13],[134,2,134,13],[137,0,137,13],[138,1,138,13],[139,4,139,5],[139,7,139,8],[139,10,139,11],[135,2,135,13],[136,1,136,13],[147,1,147,13],[128,0,128,13],[129,1,129,13],[130,2,130,13],[131,2,131,13],[132,2,132,13],[133,2,133,13],[118,1,118,13],[120,0,120,13],[121,1,121,13],[122,1,122,13],[124,1,124,13],[125,1,125,13],[126,1,126,13],[119,1,119,13],[127,1,127,13],[111,1,111,13],[112,1,112,13],[113,1,113,13],[114,2,114,13],[116,0,116,13],[117,1,117,13],[104,2,104,13],[106,0,106,13],[107,0,107,13],[108,1,108,13],[109,1,109,13],[110,1,110,13],[105,1,105,13],[115,1,115,13],[103,2,103,13],[86,3,86,13],[88,2,88,13],[91,2,91,13],[92,2,92,13],[93,2,93,13],[94,2,94,13],[90,2,90,13],[89,2,89,13],[96,2,96,13],[95,2,95,13],[98,1,98,13],[78,2,78,13],[79,2,79,13],[77,3,77,13],[76,3,76,13],[97,2,97,13],[99,0,99,13],[100,1,100,13],[101,2,101,13],[102,2,102,13],[5,1,5,9],[7,5,7,10],[8,5,8,10],[9,5,9,10],[10,5,10,10],[11,5,11,10],[87,3,87,13],[141,4,141,13],[36,0,36,13],[37,1,37,13],[38,1,38,13],[39,2,39,13],[40,2,40,13],[12,5,12,10],[14,0,14,13],[17,0,17,13],[18,1,18,13],[20,0,20,13],[15,0,15,13],[67,1,67,13],[68,1,68,13],[69,2,69,13],[70,2,70,13],[51,1,51,13],[54,0,54,13],[55,1,55,13],[57,0,57,13],[58,1,58,13],[188,3,188,13],[191,4,191,13],[202,4,202,13],[187,2,187,14],[71,3,71,13],[59,1,59,13],[60,1,60,13],[61,1,61,13],[62,1,62,13],[63,1,63,13],[80,2,80,13],[81,2,81,13],[82,2,82,13],[83,3,83,13],[84,4,84,13],[85,4,85,13],[72,3,72,13],[73,2,73,13],[74,2,74,13],[75,2,75,13],[376,0,376,13],[377,1,377,13],[378,1,378,13],[41,2,41,13],[42,1,42,13],[43,1,43,13],[46,0,46,13],[47,1,47,13],[48,2,48,13],[53,1,53,13],[56,1,56,13],[66,0,66,13],[64,1,64,13],[65,1,65,13],[50,2,50,13],[212,1,212,13],[235,1,235,13],[239,1,239,13],[243,1,243,13],[293,1,293,13],[332,1,332,13],[338,1,338,13],[350,1,350,13],[49,2,49,13]]}
[]
[]
[null,null,null,null,null,null,"Multifamily Deferred Loan ONLY Priority Checklist"]
[null,null,null,null,null,null,"2016 Request for Proposal"]
[null,null,null,null,null,null,"Updated 2016 02 12"]
[null,"Complete this tab if you are applying to the Agency for deferred loan funding and are not applying for Minnesota Housing Tax Credits, 9% or 4%."]
[]
[null,"Development Name:"]
[null,"Development Number:"]
[null,"Project Number:"]
[null,"Development Location:"]
[null,"Development City:"]
[null,"Workbook Path:"]
[]
["Strategic Priorities"]
["To be eligible to apply for Minnesota Housing funding, your proposal must meet at least one Agency defined strategic priority. For each strategic priority selected, it must be supported by documentation."]
[]
["TOD on Fixed Transit",null,null,null,null,null,null,null,null,null,null,null,null,null,"Help Text"]
[null,"The proposed housing is located within one half mile of a planned or existing LRT, BRT or commuter rail station."]
[]
["Temporary – Senior Housing Pilot",null,null,null,null,null,null,null,null,null,null,null,null,null,"Help Text"]
[null,"The proposal will create new units for seniors 62 and older and provides a replicable model that could be implemented on a "]
[null,"larger scale, and meets all five of the following**:"]
[null,"1. Households with the Greatest Needs: The proposal includes at least 5% of units, with a minimum of 4 units, set aside for each "]
[null,"of the following:"]
[null,null,"• set aside and rented to households with incomes at or below 30% AMI, and\n• set aside and targeted to households with home-and-community-based service needs."]
[null,"2. Services Component: The proposed housing must:"]
[null,null,"• at a minimum have a tenant services coordinator to coordinate home-and-community based services for residents from the full range of available providers serving the area, and market toward households that need Home and Community Based Services\n• at a maximum have a service provider with a Comprehensive License operating at the property, and with the property registered with the Department of Health as Housing with Services (a traditional assisted living model)"]
[null,"3. Aging in Place: The proposal is designed to promote aging in place, and includes a feasible plan for increasing physical"]
[null,"supports and support services to meet the future needs of residents aging in place."]
[null,"4. Market Need: The proposed housing is located in a market area with a documented need for the type of housing"]
[null," being proposed."]
[null,"5. Capacity: The proposal is presented by a team with experience and capacity for providing quality senior housing."]
[null,"You cannot select Temporary - Senior Housing Pilot and Greater Minnesota Workforce Housing in combination.  If you want to select Temporary - Senior Housing Pilot you must unselect Greater Minnesota Workforce Housing."]
[null,"**Among comparable proposals, priority will be given to those providing the largest percentage of units at 30% AMI, those with the most comprehensive and viable plan for supporting aging in place, and to those with the lowest deferred funding request."]
[]
["Greater Minnesota Workforce Housing",null,null,null,null,null,null,null,null,null,null,null,null,null,"Help Text"]
[null,"Project is located in Greater Minnesota and meets all three of the following criteria (documentation included):"]
[null,"1. Need - projects in communities with low vacancy (typically considered 4% and below, as documented by a market study or other third party data) and:"]
[null,null,"• That have experienced net job growth of 100 or more jobs"]
[null,null,"• With 15 percent or more of the workforce commuting 30 or more miles to work, or"]
[null,null,"• With planned job expansion documented by a local employer"]
[null,"2. Employer Support"]
[null,"3. Cooperatively Developed Plan -- projects that are consistent with a community supported plan that addresses workforce housing needs"]
[null,"You cannot select Temporary - Senior Housing Pilot and Greater Minnesota Workforce Housing in combination.  If you want to select Greater Minnesota Workforce Housing you must unselect Temporary - Senior Housing Pilot."]
[]
["Economic Integration",null,null,null,null,null,null,null,null,null,null,null,null,null,"Help Text"]
[null,"Project is located in higher income community outside of rural/tribal designated areas with access to low and moderate wage jobs, meeting either First or Second Tier Community Economic Integration:"]
[null,null,"First Tier - The proposed housing is located in a first tier census tract"]
[null,null,"Second Tier - The proposed housing is located in a second tier census tract"]
[null,null,"Cannot claim Rural/Tribal if you have selected the Strategic Priority for Economic Integration First Tier or Second Tier."]
[null,"Economic integration areas maps and census tract listing are found on Minnesota Housing’s website: \nAdditionally, find economic integration and rural/tribal designation area map overlays in the agency’s community profiles interactive mapping tool: "]
[null,"http://www.mnhousing.gov/wcs/Satellite?c=Page&cid=1373870285684&pagename=External%2FPage%2FEXTStandardLayout"]
[]
["Tribal Governments, Tribal Corporate Entities, or Tribally Designated Housing Entities",null,null,null,null,null,null,null,null,null,null,null,null,null,"Help Text"]
[null,"The proposed project is sponsored by a tribal government, tribal corporate entity, or tribally designated housing entity."]
[]
["Planned Community Development",null,null,null,null,null,null,null,null,null,null,null,null,null,"Help Text"]
[null,"The proposal contributes to a community plan or initiative in which: "]
[null,"• The local community is actively working on implementation steps identified in the plan, or the plan includes a timeline of implementation activities that runs past the date when the Minnesota Housing Board of Directors would make its initial commitment decision regarding the funding request. Plans that have been superseded by more current plans do not qualify."]
[null,"• Geographic boundaries of a targeted geographic area are identified by the plan or initiative. Qualifying plans in small communities may encompass the entire geography of the community or region, although the plan's targeted geographic area should be a subset of the community or region."]
[null,"• The plan or initiative responds to a crisis or opportunity and pursues community, economic, or transit oriented development objectives for the target geography aimed at creating a more vibrant, livable, sustainable and equitable community or reversing historic underinvestment or decline in the area. "]
[null,"• The plan or initiative includes the rehabilitation or production of affordable housing as a key strategy to meet identified objectives."]
[null,"• The plan or initiative identifies specific activities and investments by which the local community is pursuing and implementing the objectives."]
[null,"A qualifying plan can be created and approved by a wide variety of public and private local community development partners such as cities, counties, private foundations and public housing authorities. Plans local entities are required to produce, such as comprehensive plans in the Seven County Metropolitan Area, are not by themselves considered evidence of Planned Community Development. "]
[]
["Preservation",null,null,null,null,null,null,null,null,null,null,null,null,null,"Help Text"]
[null,"The proposal contains federally-assisted or other critical affordable housing units meeting one of the following three risks of loss due to market conversion, critical physical needs or ownership capacity."]
[null,"Note: The development is required to also be eligible in one of the preservation Selection Priorities (Existing Federal Assistance or Critical Affordable Units at Risk of Loss)."]
[null,null,"Risk of Loss Due to Market Conversion"]
[null,null,"1. Expiration of contract/use restrictions"]
[null,null,null,"a. Existing property at risk of conversion to market rate housing within five years of application date (attach copies of relevant expiring contracts including eligibility dates, loan documents that describe the ability to pre-pay the financing including required approvals and/or penalties or other evidence of eligibility for use-restricted units to convert to market rate); OR"]
[null,null,null,"b. Existing tax credit developments must be eligible to exercise their option to file for a Qualified Contract, and have not previously exercised their option; AND"]
[null,null,"2. Market for conversion evidenced by low physical vacancy rate (4% or lower) for market rate comparable units (comparable units to be validated by Minnesota Housing at Minnesota Housing's discretion); AND"]
[null,null,"3. The property’s ability to command market rents as evidenced by direct comparison to local market comparable units and amenities. Conversion scenario must result in sufficient additional revenue to fund improvements and amenities necessary to match market comparable units as evidenced by Three Year Conversion Model and market study (Market comparable and improvement cost estimates to be validated by Minnesota Housing at Minnesota Housing’s discretion); AND"]
[null,null,"4. Location in a jobs growth or household growth area as defined in the Agency’s Community Profiles Interactive Mapping Tool "]
[null,null,null,"http://www.mnhousing.gov/wcs/Satellite?c=Page&cid=1373870285684&pagename=External%2FPage%2FEXTStandardLayout"]
[null,null,null,"AND"]
[null,null,"5. Fifteen (15) or more years have passed since initial loan closing or most recent tax credit placed in service date."]
[null,null,"NOTE: Minnesota Housing, at its sole discretion, must agree that a market exists for a conversion to market rate housing."]
[null,null,"Risk of Loss Due to Critical Physical Needs"]
[null,null,"1. Fifteen (15) or more years have passed since initial loan closing or most recent tax credit placed in service date; AND"]
[null,null,"2. Critical physical needs identified by third party assessment to support the following conclusions:"]
[null,null,null,"a. As - is condition of a property's physical components(s) does not meet:"]
[null,null,null,null,"i.  HUD's Uniform Physical Condition Standards (UPCS), OR"]
[null,null,null,null,"ii. For building exterior components and mechanical systems for which UPCS does not provide a measure, critical need(s) supported by an independent third party professional certification; AND"]
[null,null,null,"b. Repair/replacement of major physical plant components have been identified which will result in 15+ years sustained operations; AND"]
[null,null,null,"c. Identified scope of critical physical needs exceeds the available reserves by at least $5,000 per unit, as evidenced by Three Year Critical Needs Model; AND"]
[null,null,"3. Location in one of three geographic priority areas: jobs growth area, household growth area OR an area designated as having a large affordable housing gap, as evidenced in Minnesota Housing’s Community Profiles Interactive Mapping Tool   "]
[null,null,"http://www.mnhousing.gov/wcs/Satellite?c=Page&cid=1373870285684&pagename=External%2FPage%2FEXTStandardLayout"]
[null,null,"or as evidenced by tribal housing authority waiting list.    "]
[null,null,"Risk of Loss Due to Ownership Capacity"]
[null,null,"1. Fifteen (15) or more years have passed since initial loan closing or most recent tax credit placed in service date; AND"]
[null,null,"2. Current ownership puts units at risk of remaining decent, safe, or affordable. Applicable events might include bankruptcy, insolvency, self-determination by nonprofit board; AND"]
[null,null,"3. Location in one of three geographic priority areas: jobs growth area, household growth area OR an area designated as having a large affordable housing gap, as evidenced in Minnesota Housing’s Community Profiles Interactive Mapping Tool "]
[null,null,"http://www.mnhousing.gov/wcs/Satellite?c=Page&cid=1373870285684&pagename=External%2FPage%2FEXTStandardLayout"]
[null,null,"or as evidenced by tribal housing authority waiting list. "]
[null,null,"Minnesota Housing, at its sole discretion, must agree that a change in ownership is necessary for units to remain decent, safe, or affordable."]
[]
["Permanent Supportive Housing",null,null,null,null,null,null,null,null,null,null,null,null,null,"Help Text"]
[null,"The proposed housing development has at least 5% of the units, with a minimum of 4 units, that provide permanent supportive housing for homeless or special populations.\nPermanent housing proposals with at least 5 percent of units (rounded up to the next full unit), with a minimum of 4 units either:"]
[null,null,"Set aside and rented to households experiencing long-term homelessness targeted to single adults, or"]
[null,null,"Set aside and rented to households experiencing long-term homelessness, at significant risk of long-term"]
[null,null,"homelessness, or as prioritized for permanent supportive housing by the Coordinated Entry System, targeted to families with children or youth, or"]
[null,null,"Set aside and rented to Special populations as defined under Selection Priorities - Household Targeting."]
[]
["Selection Priorities"]
["Household Targeting",null,null,null,null,null,null,null,null,null,null,null,null,null,"Help Text"]
[null,"Large Family Housing: The proposal is for a project that provides family housing that is not restricted to persons 55"]
[null,"old or older. At least 75% of the total affordable units must contain two or more bedrooms. The tenant selection plan must give preference to families with minor children."]
[null,"Single Room Occupancy Housing:  At least 50% of the total affordable units must be one bedroom or less with rents"]
[null,"affordable to households whose incomes do not exceed 30% of AMI."]
[null,"Special Populations: At least 10% and up to 25% of the total units are set aside and targeted to special populations*"]
[null,"*Special Populations - Projects that are not restricted to persons of a particular age group and in which, for the term of the extended use period (Declaration of Land Use Restrictive Covenants), a percentage of the units are set aside and rented to persons with the following disabilities:"]
[null,null,"(a) a serious and persistent mental illness as defined in Minn. Stat. § 245.462, subdivision 20, \nparagraph (c);\n(b) a developmental disability \n(c) assessed as drug dependent as defined in Minn. Stat. § 254A.02, subdivision 5, and are receiving or will receive care and treatment services provided by an approved treatment program as defined in Minn. Stat. § 254A.02, Subdivision 2.\n(d) a brain injury as defined in Minn. Stat. § 256B.093, Subdivision 4, paragraph (a); or\n(e) permanent physical disabilities that substantially limit major life activities, if at least 50 percent of the units in the project are accessible as provided under Minnesota Rules Chapter 1341."]
[]
["Economic Integration - Mixed Income",null,null,null,null,null,null,null,null,null,null,null,null,null,"Help Text"]
[null," The proposed housing provides project economic integration by providing at least 25% but not greater than 80% of the "]
[null,"total units in the project as affordable units (does not include full-time manager or other common space units). "]
[]
["Rural/Tribal",null,null,null,null,null,null,null,null,null,null,null,null,null,"Help Text"]
[null,"The proposed housing is located in a census tract eligible as a Rural/Tribal Designated Area. Rural/Tribal Designated"]
[null,"areas maps and census tract listing are found on Minnesota Housing's website:"]
[null,"http://www.mnhousing.gov/wcs/Satellite?c=Page&cid=1358905254471&pagename=External%2FPage%2FEXTStandardLayout"]
[null,"Cannot claim Rural/Tribal if you have selected the Strategic Priority for Economic Integration First Tier or Second Tier."]
[null,"Additionally, find rural/tribal designation area map overlays in the agency's community profiles interactive mapping tool: "]
[null,"http://www.mnhousing.gov/wcs/Satellite?c=Page&cid=1373870285684&pagename=External%2FPage%2FEXTStandardLayout"]
[]
["Workforce Housing",null,null,null,null,null,null,null,null,null,null,null,null,null,"Help Text"]
[null,"For projects located in or near a city or township needing workforce housing:"]
[null,null,"The proposed housing is in a Top Job Center or Net Five Year Job Growth Community, OR"]
[null,null,"The proposed housing is in an individual Employer Growth community where an individual employer has added"]
[null,null,"at least 100 net jobs (for permanent employees of the company) during the previous five years, OR"]
[null,null,"The proposed housing is in a Long Commute Community"]
[null,null,"In the metropolitan area, project locations must be within 5 miles of a workforce housing city or township. In Greater Minnesota, project locations must be within 10 miles of a workforce housing city or township. Workforce Housing Communities list and maps: \n\nAdditionally, find proximity to workforce housing in the agency's community profiles interactive mapping tool:"]
[null,null,"http://www.mnhousing.gov/wcs/Satellite?c=Page&cid=1373870285684&pagename=External%2FPage%2FEXTStandardLayout"]
[]
["Federal/Local/Philanthropic Contributions",null,null,null,null,null,null,null,null,null,null,null,null,null,"Help Text"]
[null,"The proposed housing is  receiving contributions from the federal government; a local unit of government; an area employer; and/or a private philanthropic, religious or charitable organization.\nIdentity of Interest exclusion:  Contributions from any part of the ownership entity will be considered general partner cash and excluded from the calculation unless the contributions are awarded by 1) nonprofit charitable organizations pursuant to a funding competition; 2) local units of government; or 3) tribal governments or tribally designated housing entities."]
[null,null,null,null,null,null,"/",null,null,"=",{"$f":"IF(H140 = 0, 0, ROUND(E140/H140,3))","v":0}]
[null,null,null,null,"Total Contributions",null,null,"Total Development Cost",null,null,"% Contributions"]
[null,null,null,null,"Total Federal/Local/Philanthropic Contributions divided by Development Cost equals percent rounded to the nearest tenth."]
[]
[]
[]
[null,"Federal/Local/Philanthropic Contributions include:"]
[null,null,"*Monetary grants/donations \n*Tax increment financing - calculate Net Present Value (NPV) by using NPV\n*Tax abatement (calculate NPV by using NPV discounted by AFR for 30 years) \n*Land donation or city write down of the development site\n*In-kind work and materials donated at no cost\n*Local government donation/waiver of project specific costs, assessments or fees (e.g.. SAC/WAC)\n*Reservation land not subject to local property taxes (calculate NPV by using NPV discounted by AFR for 30 years)\n*Reservation land with long-term low cost leases\n*Deferred loans with a minimum term of 30 years with an interest rate at or below the AFR \n*Grants from nonprofit charitable organizations converted to deferred loans with a minimum term of 30 years with an interest rate at or below the AFR.  Award letter from the nonprofit charitable organization contributor must be provided at the time of application verifying the project specific (restricted) contribution\n*Below Market Interest Rate (BMIR) Loans -calculate NPV based on the difference between the AFR and the BMIR rate (e.g., RD 515, NHASDA first mortgage).  \n*Historic Tax Credits"]
[]
["Private Investment",null,null,null,null,null,null,null,null,null,null,null,null,null,"Help Text"]
["Federal/Local/Philanthropic Contributions criteria must be completed to qualify for this category."]
[null,"A portion of the contributions included in the Federal, Local, Philanthropic, Contribution calculation is considered "]
[null,"private investment. A description and evidence of the private investment is provided."]
[]
["Financial Readiness to Proceed",null,null,null,null,null,null,null,null,null,null,null,null,null,"Help Text"]
[null,"Applicants who have secured funding commitments for one or more permanent funding sources at the time of application except that commitments for funding from Minnesota Housing and Funding Partners (i.e., Minnesota Department of Employment and Economic Development, Family Housing Fund, Greater Minnesota Housing Fund, Metropolitan Council Local Housing Incentive Account) are only included if obtained in a previous funding cycle/round.  "]
[null,"Deferred Developer fee is not considered a permanent source of funding.\nThe calculation below must exclude first mortgage financing and any anticipated proceeds from the current tax credit request to a suballocator. \nSyndication proceeds from tax credits awarded in a previous cycle/round may be included if verification is included in the application.  "]
[null,null,null,null,null,null,"/",null,null,"=",{"$f":"IF(H157 = 0, 0, ROUND(E157/H157,3))","v":0}]
[null,null,null,null,"Total Eligible Funding",null,null,"Total Development Cost less first mortgage and current LIHTC Request",null,null,"%Contributions"]
[]
[]
[]
[]
[]
[]
[]
[]
[]
["Preservation",null,null,null,null,null,null,null,null,null,null,null,null,null,"Help Text"]
[null,"Note: Developments must meet one of the three Risk of Loss thresholds in the Strategic Priorities category to be eligible to select this category."]
[null,"1. Existing Federal Assistance"]
[null,"Definition: Any housing receiving project based rental assistance, operating subsidies, or mortgage interest reduction payments under a U.S. Department of Housing and Urban Development (HUD). US Department of Agriculture Rural Development (RD), NAHASDA or other program that is not scheduled to sunset or expire."]
[null,null,"1. a. Existing Federally Assisted Units"]
[null,"Cannot be claimed under the Rental Assistance selection priority if claimed for the\nsame units for Existing Federal Assistance under the Preservation selection priority."]
[null,null,null,null,"AND"]
[null,null,"1. b. Indicate the number of federally assisted units currently under contract for preservation:"]
[null,null,null,"i. Metro or Greater Minnesota MSA*"]
[null,null,null,null,"12 - 30 units"]
[null,null,null,null,"31 - 60 units"]
[null,null,null,null,"61 - 100 units"]
[null,null,null,null,"101+ units"]
[null,null,null,"ii. Greater Minnesota/Rural"]
[null,null,null,null,"8 - 20 units"]
[null,null,null,null,"21 - 40 units"]
[null,null,null,null,"41+ units"]
[null,"2. Critical Affordable Units at Risk of Loss"]
[null,null,"2.a. Any housing with a current recorded deed restriction limiting rent or income restrictions at or below the greater of "]
[null,null," 80% of statewide median income or area median income. Includes existing tax credit units, existing federal assistance not described in paragraph 1. above (i.e., 202, 236, etc.), or other programs limiting income and rent restrictions as stated above. "]
[null,null,"Note: In order to select Preservation 2.a. you must also select at least three of the following: Economic Integration, Location Efficiency, Workforce Housing, OR QCT/Community Revitalization & Tribal Equivalent Areas; AND must also select Serves Lowest Income Tenants/Affordable to the Local Workforce Option 1, Option 2 OR Option 3 AND Option 4.  "]
[null,null,null,"Following is a recap of what you have selected:"]
[null,null,null,null,"Economic Integration"]
[null,null,null,null,"Location Efficiency"]
[null,null,null,null,"Workforce Housing"]
[null,null,null,null,"QCT/Community Revitalization and Tribal Equivalent Areas"]
[null,null,null,null,"Option 1 - Serves Lowest Income Tenants/Affordable to the Local Workforce"]
[null,null,null,null,"Option 2 - Serves Lowest Income Tenants/Affordable to the Local Workforce"]
[null,null,null,null,"Option 3 - Serves Lowest Income Tenants/Affordable to the Local Workforce"]
[null,null,null,null,"Option 4 - Serves Lowest Income Tenants/Affordable to the Local Workforce"]
[null,null,"AND"]
[null,null,"Must also claim and be eligible for at least three of the following Selection Priorities: Economic Integration, Location Efficiency, Workforce Housing Communities, OR QCT/Community Revitalization; AND must also claim and be eligible under Serves Lowest Income Tenants/Rent Reduction for either Option 1 OR Option 2.      "]
[null,null,"2.b. Funder Collaboration - for projects eligible under 2.a."]
[null,null,null,null,null,null,"/",null,null,"=",{"$f":"IF(H201=0,0,ROUND(E201/H201,3))","v":0}]
[null,null,null,null,"Funder Commitments",null,null,"Total Development Cost"]
[]
[null,null,null,null,"Projects having Funder Commitments equal to 10.0% or greater (rounded to the nearest tenth)"]
[null,null,null,null,"Funder Commitments include"]
[null,null,null,null,null,"· Debt forgiveness"]
[null,null,null,null,null,"· Assumption of debt"]
[null,null,null,null,null,"· Commitment of new funds"]
[null,null,null,null,null,"· Extension of loan term"]
[null,null,null,null,null,"· Forgiveness of interest payable"]
[null,null,null,null,null,"· Reduction in interest rate (measured as amount of interest saved over term of loan)"]
[null,"Cannot select Funder Collaboration (2.b.) and the Federal/Local/Philanthropic Contributions criterion for the same source."]
[]
["Permanent Supportive Housing for Households Experiencing Homelessness",null,null,null,null,null,null,null,null,null,null,null,null,null,"Help Text"]
[null,"A. Permanent housing proposals in which a minimum of 5% (rounded up to the next full unit) of the total units, but no fewer than 4 units are either*:"]
[null,null,"1. Set aside and rented to households experiencing long-term homelessness targeted to single adults, OR"]
[null,null,"2. Set aside and rented to households experiencing long-term homelessness, at significant risk of long-term homelessness, or as prioritized for permanent supportive housing by the Coordinated Entry System, targeted to families with children or youth"]
[null,null,null,"5% to 9.99%, but no fewer than 4 units"]
[null,null,null,"10% to 49.99%, but no fewer than 7 units"]
[null,null,null,"50% to 100%, but no fewer than 20 units"]
[null,"B. Youth and Family Proposals"]
[null,null,"For Proposals eligible under A above:"]
[null,null,null,"at least 5% of total units, but no fewer than 4 units, will target families with children or unaccompanied youth."]
[null,null,"For the purposes of this scoring category:"]
[null,null,null,"*A youth is defined as a person under age 25 not living with a parent or guardian, and includes youth with his/her own children\n*Long-term homelessness is as defined in Minnesota Rules, Chapter 4900.3705\n*At significant risk of long-term homelessness is defined as (a) households that are homeless or recently homeless with members who have been previously homeless for extended periods of time and are faced with a situation or set of circumstances likely to cause the household to become homeless in the near future, and (b) previously homeless persons who will be discharged from correctional, medical, mental health or treatment centers who lack sufficient resources to pay for housing and do not have a permanent place to live \n*As prioritized for permanent supportive housing by the Coordinated Entry System defined by the Statewide Coordinated Entry standards and protocol as adopted by the local Continuum of Care."]
[null,"C. Consistency with Local Continuum of Care Priorities"]
[null,null,"1. Continuum of Care Household Type Priorities:"]
[null,null,null,"5% or more, but no fewer than 4 units, targeted to Continuum of Care Household Type Priority One OR"]
[null,null,null,"5% or more, but no fewer than 4 units, targeted to Continuum of Care Household Type Priority Two"]
[null,null,"2. Continuum of Care Subpopulation Type Priorities:"]
[null,null,null,"5% or more, but no fewer than 4 units, targeted to Continuum of Care Subpopulation Type Priority One OR"]
[null,null,null,"5% or more, but no fewer than 4 units, targeted to Continuum of Care Subpopulation Type Priority Two"]
[null," Permanent Supportive Housing proposals must meet all of the following conditions:"]
[null,null,"a) the applicant agrees to pursue and continue renewal of rental assistance, operating subsidy, or service funding contracts for as long as the funding is available."]
[null,null,"b) If the proposal is selected to receive Minnesota Housing funding the development will be required to comply with the Long-Term Homelessness reporting requirements as defined by Minnesota Housing. "]
[]
["LTH Rental Assistance",null,null,null,null,null,null,null,null,null,null,null,null,null,"Help Text"]
[null,"For proposals  meeting the Permanent Supportive Housing for Households Experiencing Homelessness criteria, if rent"]
[null,"assistance has been secured and committed, provide evidence."]
[]
["High Speed Internet Access",null,null,null,null,null,null,null,null,null,null,null,null,null,"Help Text"]
[null,"The development will provide High Speed Internet access via installation of all appropriate infrastructure and connections for "]
[null," cable, DSL or wireless internet service to every unit in the development.  This will be a design requirement if claimed."]
[]
["Location Efficiency",null,null,null,null,null,null,null,null,null,null,null,null,null,"Help Text"]
[null,"For transit oriented developments or developments that promote location efficiency based on a combination of access to transportation and walkability."]
[null,"Twin Cities Metropolitan Area:"]
[null,"In the Twin Cities Metropolitan area, indicate whether the proposal will meet the criteria in a combination of three areas: access to transit, walkability, and transit oriented development."]
[null,null,"1) Access to Transit"]
[null,null,null,"For developments in the Twin Cities Metropolitan area, indicate whether the development provides any of the following access to transit:"]
[null,null,null,null,"Located within one half mile of a completed or planned LRT, BRT, or commuter rail station - OR"]
[null,null,null,null,"Located within one quarter mile of a fixed route stop on Metro Transit's Hi-Frequency Network - OR"]
[null,null,null,null,"Located within one quarter mile of a high service public transportation fixed route stop - OR"]
[null,null,null,null,"Located within one half mile of an express bus route stop - OR"]
[null,null,null,null,"Located within one half mile of a park and ride"]
[null,null,"2) Walkability:"]
[null,null,null,"For developments meeting Access to Transit above, indicate whether also:"]
[null,null,null,null,"Located in an area with a walk score of 70 or more according to www.walkscore.com - OR"]
[null,null,null,null,"Located in an area with a walk score between 50 and 69 according to www.walkscore.com"]
[null,null,"3) Transit Oriented Development:"]
[null,null,null,"For developments located within one quarter mile of a completed or planned LRT, BRT, or commuter rail station, indicate whether any of the following apply:"]
[null,null,null,null,"Parking: Parking for residential units or visitors is not more than the smallest allowable parking minimum under"]
[null,null,null,null,"local zoning requirements. If no residential parking or visitor parking is required under local zoning, no more than 0.2 visitor parking spaces per residential unit are provided."]
[null,null,null,null,"Building Orientation and Connections: Currently existing walkable or bikeable connections to station area via"]
[null,null,null,null,"sidewalk or trail or funding secured to create such connections, and at least one accessible building entrance oriented toward such connections, and parking is not situated between building and station area."]
[null,null,null,null,"Density: Site density at the maximum allowable density under the local comprehensive plan."]
[null,null,null,null,"Alternative Means: Car sharing (where one or more passenger automobiles are provided for common use by "]
[null,null,null,null,"residents, bike storage, shared parking arrangements with adjacent property owners, etc.) which results in a "]
[null,null,null,null,"reduction in the local minimum parking requirement, and parking for residential units in not more than the "]
[null,null,null,null,"local minimum parking requirement, or if no residential parking or visitor parking is required under local zoning,"]
[null,null,null,null,"no more than 0.2 visitor parking spaces per residential unit are provided."]
[null,"Greater Minnesota:"]
[null,"In Greater Minnesota, location efficiency will be determined based on a combination of access to transit and walkability in areas with fixed route transit service, and a combination of dial-a-ride, walkability, and access to jobs in areas without fixed route transit service."]
[null,"A. For areas with fixed route transit service"]
[null,null,"1) Access to Transit:"]
[null,null,null,"For Greater Minnesota developments, indicate whether the development provides any of the following access to transit:"]
[null,null,null,null,"Located within one quarter mile of a completed or planned public transportation fixed route stop - OR"]
[null,null,null,null,"Located between one quarter mile and one half mile of a completed or planned public transportation fixed "]
[null,null,null,null,"route stop - OR"]
[null,null,null,null,"Located less than one half mile of an express bus route stop or park and ride lot"]
[null,null,"2) Walkability:"]
[null,null,null,null,"Located in an area with a walk score of 70 or more according to www.walkscore.com - OR"]
[null,null,null,null,"Located in an area with a walk score between 50 and 69 according to www.walkscore.com"]
[null,"B. For areas without fixed route transit service"]
[null,null,"For location efficiency in areas without fixed route transit service, the development is located within a census tract that is within 5 miles of 2,000 low and moderate wage jobs for urban census tracts, or within 5 miles of 5,000 low and moderate wage jobs for rural census tracts and meets the following:"]
[null,null,null,"The proposed housing has access to demand response/dial-a-ride services during standard workday hours"]
[null,null,null,"The proposed housing is in an area with a walk score of 50 or more according to www.walkscore.com"]
[null,null,null,"The proposed housing is in an area with a walk score between 35 and 49 according to www.walkscore.com"]
[]
[null,null,"Minnesota Department of Transportation defines dial-a-ride as: “A demand-responsive service in which the vehicle is requested by telephone and vehicle routing is determined as requests are received.  Origin-to-destination service with some intermediate stops is offered.  Dial-A-Ride is a version of the taxicab using larger vehicles for short-to-medium distance trips in lower-density sub regions”."]
[]
[null,null,"Access to transportation maps and census tract listings are found on Minnesota Housing’s website:\nAdditionally, find these details in the agency’s community profiles interactive mapping tool:  "]
[null,null,"http://www.mnhousing.gov/wcs/Satellite?c=Page&cid=1373870285684&pagename=External%2FPage%2FEXTStandardLayout"]
[]
["Universal Design",null,null,null,null,null,null,null,null,null,null,null,null,null,"Help Text"]
[null,"Universal Design Unit Definition: A unit that includes all Minimum Essential Universal Design Features below, along with 8 Optional Features for units in a new construction or adaptive re-use project, and 4 Optional Features for units in a rehabilitation project. Type A accessible units (as referenced in Minnesota Housing's Rental Housing Design and Construction Standards) are also considered to meet the definition of a Universal Design unit for the purposes of this category."]
[null,null,"Elevator building with 100% of units meeting the definition"]
[null,null,"Non-elevator building with at least 10% of units meeting the definition"]
[null,"Minimum Essential Universal Design Features"]
[null,null,"· At least one bedroom or space that can be converted to a bedroom (without changing door locations for new construction or adaptive re-use) on an accessible level and connected to an accessible route."]
[null,null,"· 42” minimum hallways within a unit for new construction or adaptive re-use"]
[null,null,"· At least one three quarter bathroom on an accessible level with five foot open radius for new construction or adaptive re-use, and clear floor space of 30” x 48” for rehabilitation"]
[null,null,"· Lever handles on all doors and fixtures"]
[null,null,"· Provide wall blocking in all tub and shower areas for new construction or adaptive re-use, and for rehabilitation if showers are being replaced"]
[null,null,"· Door thresholds flush with the floor with maximum threshold height of ½” beveled or ¼”square edged"]
[null,null,"· Kitchen and laundry appliances have parallel approach clear floor space with all controls within maximum height of 48”. Range controls must have lockout feature. Stackable laundry units with a maximum reach range of 54” will meet this requirement"]
[null,null,"· Kitchen sink area 30\" wide minimum with cabinet panel concealing piping or a removable base cabinet"]
[null,null,"· All common spaces and amenities provided in the housing development located on an accessible route"]
[null,null,"· For new construction or adaptive re-use, deck or patio spaces have a step-less transition from dwelling unit meeting door threshold requirements, with decking gaps no greater than ¼”"]
[null,null,"· Universal Design features are incorporated in an aesthetic, marketable, non-institutional manner"]
[null,"Optional Features"]
[null,null,"· High contrast finish selections that include floor to wall transitions, top treads of stairs, counters and adjacent flooring and walls"]
[null,null,"· Single lever, hands free or touch faucets"]
[null,null,"· At least 50% of kitchen storage space within reach range. This can include pull-out shelves, full extension glide drawers or pantry design"]
[null,null,"· A variety of work surface heights in kitchen and one five foot open radius"]
[null,null,"· Roll under vanity or sink in twenty five percent of Universal Design qualifying units, rounded up to the nearest whole number"]
[null,null,"·  Cabinet hardware with “D” type pull handles or operation for people with limited dexterity"]
[null,null,"· Zero threshold shower or transfer space at tub is provided for minimum of half the qualifying Universal Design units, rounded up to the nearest whole number"]
[null,null,"· Slip resistant flooring in kitchens and baths"]
[null,null,"· Toilets provided with seats 17” – 19” from the floor"]
[null,null,"· Windows are provided with maximum sill height of 36”, parallel clear floor space and locks/operating mechanism within 48” and easily operable with one hand. Sidelight or view window at main entry door from a seated position"]
[null,null,"· Thermostats designed for visually impaired or ability to monitor and operate with electronic device such as a tablet computer"]
[null,null,"· Closet storage is adjustable in a majority of the closets provided"]
[null,null,"· Audio/Visual Doorbell"]
[null,null,"· Covered entry with adequate lighting and interior or exterior bench space for parcels or groceries"]
[null,null,"· Lettering and numbering with all characters and symbols contrasting with their background"]
[null,null,"· Braille characters included to the left on all interior signage"]
[null,null,"· Parking spaces provided for at least fifty percent of Universal Design qualifying units, rounded up to the nearest whole number, with a five foot wide adjacent auxiliary space connected to accessible route"]
[null,null,"· Residential elevator or chair lift space structured for future use in multiple level homes"]
[null,null,"· Enterprise Green Communities Model Specifications are used for applicable sections for the Universal Design qualifying units"]
[null,null,"· On-site physical activity is provided for in a fitness area, biking or walking path or community garden"]
[null,null,"· Other modifications which make units livable for disabled populations, as demonstrated by credible evidence provided in the application, at the sole discretion of Minnesota Housing"]
[]
["Smoke Free Buildings",null,null,null,null,null,null,null,null,null,null,null,null,null,"Help Text"]
[null,"The project will institute and maintain a written policy* prohibiting smoking in all the units and all common areas within"]
[null,"the building/s of the project. The project will include a non-smoking clause in the lease for every household."]
[]
[null,"* Projects will be required to maintain the smoke-free policy for the term of the loan."]
[]
["Serves Lowest Income Tenants/Affordable to the Local Workforce",null,null,null,null,null,null,null,null,null,null,null,null,null,"Help Text"]
[null,"Indicate the income and rent restrictions with which the housing proposal will comply if awarded funding from Minnesota Housing"]
[null,null," Option 1: A project in which 100 percent of the affordable units rents are at the 50 percent MTSP and incomes do not"]
[null,null," exceed 60% MTSP"]
[null,null," Option 2: A project in which at least 50 percent of the affordable unit rents are at the 50 percent MTSP and incomes do "]
[null,null,"not exceed 60% MTSP"]
[null,null,"Option 3:  A project which meets the Greater MN Workforce Housing Strategic Priority in which 100 percent of "]
[null,null,"the affordable units rents are affordable to the local workforce"]
[null,null,null,null,"AND"]
[null,null,"Option 4: In addition to Option 1,2, or 3 a project that further restricts units to the 30% of Metro Median rent limit and"]
[null,null,"incomes do not exceed 30% of Metro Median income, adjusted for household size of 5 or more"]
[]
["Rental Assistance",null,null,null,null,null,null,null,null,null,null,null,null,null,"Help Text"]
[null,"Priority is given to an owner that submits with the application a fully executed binding commitment (i.e., binding Resolution/binding Letter of Approval from the governing body) for project based rental assistance awarded in accordance with 24 CFR Ch. IX, Section 983.51 or are effectively project based by written contract. For the purposes of this scoring category, project based rental assistance is defined as a project-specific funding stream that supports the operations of the property, reduces the tenant rent burden, and provides for the tenant paid portion of rent to be no greater than 30% of household income. Site-based Group Residential Housing, and awards of project based McKinney Vento Continuum of Care funding, will be considered project based rental assistance. A development that has existing rental assistance meeting the definition of federal assistance under the Preservation category will not be considered in the Rental Assistance priority.\n\nA current request for Minnesota Housing Rental Assistance is not eligible under this category to receive Rental Assistance. A past award of existing Rental Assistance will be counted toward meeting the required percentages. Indicate the applicable combination of the below components."]
[null,null,"A) For developments agreeing to set aside and having the required binding commitment for 100 percent of the total units"]
[null,null,"for project based rental assistance"]
[null,null,"B) For developments agreeing to set aside and having the required binding commitment for at least 51 percent of the total"]
[null,null,"units for project based rental assistance"]
[null,null,"C) For developments agreeing to set aside and having the required binding commitment for at least 20 percent but under"]
[null,null,"51 percent of the total units for project based rental assistance"]
[null,null,"D) For developments agreeing to set aside and having the required binding commitment for at least 5 percent but under"]
[null,null,"20 percent of the total units, representing at least 4 units, for project based rental assistance"]
[null,null,"E) For selection components A, B, C, or D above, if, in addition, the above binding commitments are coupled with a binding"]
[null,null,"commitment to provide the project based rental assistance for a minimum 10 year new or remaining contract term"]
[null,null,"F) For selection components A, B, C, or D above, if, in addition, the above binding commitments are coupled with a binding"]
[null,null,"commitment to provide the project based rental assistance for a 4 to 9 year new or remaining contract term"]
[null,null,"Note: If any of the above are claimed, then the Selection Priority of Serves Lowest-Income Tenants/Affordable to the Local Workforce cannot be claimed for the same units."]
[null,null,"G) For developments that will provide other Rental Assistance (e.g., portable tenant based, an award of McKinney Vento "]
[null,null,"Shelter Continuum of Care rent assistance (which is tenant based, sponsor based, or for leasing), tenant based Group "]
[null,null,"Residential Housing, or other similar programs approved by Minnesota housing.)"]
[]
["QCT/Community Revitalization and Tribal Equivalent Areas",null,null,null,null,null,null,null,null,null,null,null,null,null,"Help Text"]
[null,"Project is located in a Qualified Census Tract (See Qualified Census Tract - Reference Materials Index) and is eligible under"]
[null,"the Planned Community Development Strategic Priority above, or is located in a Tribal Equivalent Area as published on"]
[null,"Minnesota Housing's website."]
[null,"http://www.mnhousing.gov/wcs/Satellite?c=Page&cid=1358905254471&pagename=External%2FPage%2FEXTStandardLayout"]
[]
["Greater Minnesota Workforce Housing – Meaningful Employer Contribution",null,null,null,null,null,null,null,null,null,null,null,null,null,"Help Text"]
[null,"The project meets the Greater Minnesota Workforce Housing Strategic Priority and has received a meaningful contribution"]
[null," from an area employer."]
[null,"Must check Greater Minnesota Workforce Housing under Strategic Priorities to be eligible for this category."]

{"sheet":"Housing Tax Credit","index":2,"n_rows":603,"n_cols":15,"rows_kept":603,"cut":false,"hidden":true,"merged":[[575,1,575,13],[510,1,510,13],[511,1,511,13],[552,1,552,13],[553,1,553,13],[555,1,555,13],[541,0,541,13],[542,1,542,13],[543,1,543,13],[544,1,544,13],[545,1,545,13],[546,2,546,13],[547,1,547,13],[548,2,548,13],[549,1,549,13],[554,1,554,13],[574,1,574,13],[522,1,522,13],[523,1,523,13],[525,0,525,13],[533,2,533,13],[534,2,534,13],[535,2,535,13],[536,2,536,13],[137,0,137,13],[147,0,147,13],[220,2,220,13],[237,2,237,13],[238,2,238,13],[245,2,245,13],[246,2,246,13],[388,0,388,13],[505,1,505,13],[498,1,498,13],[499,1,499,13],[500,0,500,13],[502,0,502,10],[503,1,503,13],[504,1,504,13],[492,1,492,13],[493,1,493,13],[494,1,494,13],[495,1,495,13],[496,1,496,13],[497,0,497,13],[489,1,489,13],[490,1,490,13],[491,1,491,13],[588,1,588,12],[560,2,560,13],[561,2,561,13],[527,1,527,13],[529,0,529,13],[530,1,530,13],[562,2,562,13],[568,2,568,14],[569,2,569,14],[570,2,570,14],[579,0,579,13],[582,1,582,12],[587,1,587,12],[557,0,557,13],[558,1,558,13],[559,2,559,13],[577,0,577,13],[563,1,563,14],[564,2,564,14],[565,2,565,14],[566,2,566,14],[567,2,567,14],[572,0,572,13],[573,1,573,13],[602,0,602,12],[595,1,595,12],[596,1,596,12],[597,1,597,12],[598,1,598,12],[599,1,599,12],[600,1,600,12],[589,1,589,12],[590,1,590,12],[591,1,591,12],[592,1,592,12],[593,1,593,12],[594,1,594,12],[507,0,507,10],[508,1,508,13],[509,1,509,13],[513,0,513,11],[515,0,515,13],[516,0,516,13],[518,0,518,13],[520,0,520,13],[521,0,521,13],[526,1,526,13],[538,2,538,13],[539,2,539,13],[531,2,531,13],[532,2,532,13],[550,1,550,13],[551,1,551,13],[488,1,488,13],[459,0,459,2],[459,3,459,10],[460,3,460,10],[461,3,461,10],[463,0,463,13],[465,0,465,3],[462,3,462,11],[482,0,482,10],[483,0,483,13],[485,1,485,13],[481,0,481,13],[486,1,486,13],[487,1,487,13],[501,0,501,13],[506,0,506,13],[519,0,519,13],[454,3,454,10],[455,1,455,13],[456,0,456,2],[456,4,456,13],[457,4,457,13],[458,1,458,13],[466,1,466,13],[473,1,473,13],[480,1,480,13],[450,0,450,13],[451,0,451,2],[453,0,453,2],[443,1,443,13],[444,1,444,13],[445,1,445,13],[446,1,446,13],[448,0,448,10],[449,0,449,10],[451,3,451,9],[453,3,453,9],[452,3,452,9],[436,2,436,13],[437,2,437,13],[438,2,438,13],[439,2,439,13],[440,2,440,13],[442,0,442,10],[430,2,430,13],[431,2,431,13],[432,2,432,13],[433,2,433,13],[434,2,434,13],[435,2,435,13],[441,0,441,13],[424,2,424,13],[425,2,425,13],[426,2,426,13],[427,2,427,13],[428,2,428,13],[429,2,429,13],[418,2,418,13],[419,2,419,13],[420,2,420,13],[421,2,421,13],[422,2,422,13],[423,2,423,13],[412,2,412,13],[413,2,413,13],[414,2,414,13],[415,2,415,13],[416,2,416,13],[417,2,417,13],[406,2,406,13],[407,2,407,13],[408,2,408,13],[409,2,409,13],[410,2,410,13],[411,0,411,13],[400,2,400,13],[401,2,401,13],[402,2,402,13],[403,2,403,13],[404,2,404,13],[405,2,405,13],[394,0,394,13],[395,2,395,13],[396,2,396,13],[397,2,397,13],[398,2,398,13],[399,2,399,13],[386,3,386,13],[387,0,387,13],[390,0,390,10],[391,0,391,13],[392,1,392,13],[393,1,393,13],[380,3,380,13],[381,3,381,13],[382,0,382,13],[383,2,383,13],[384,2,384,13],[385,3,385,13],[389,0,389,13],[374,2,374,13],[375,3,375,13],[376,3,376,13],[377,0,377,13],[378,2,378,13],[379,2,379,13],[368,2,368,13],[369,2,369,13],[370,3,370,13],[371,3,371,13],[372,0,372,13],[373,2,373,13],[362,2,362,13],[363,1,363,13],[364,3,364,13],[365,3,365,13],[366,0,366,13],[367,0,367,13],[356,2,356,13],[357,1,357,13],[358,3,358,13],[359,3,359,13],[360,3,360,13],[361,3,361,13],[349,3,349,13],[350,3,350,13],[351,3,351,13],[353,0,353,13],[354,0,354,13],[355,0,355,13],[343,2,343,13],[344,1,344,13],[345,3,345,13],[346,3,346,13],[347,3,347,13],[348,3,348,13],[337,3,337,13],[338,3,338,13],[339,2,339,13],[340,1,340,13],[341,3,341,13],[342,3,342,13],[331,0,331,13],[332,2,332,13],[333,1,333,13],[334,3,334,13],[335,3,335,13],[336,3,336,13],[324,0,324,10],[325,1,325,13],[326,1,326,13],[328,0,328,10],[329,0,329,13],[330,0,330,13],[317,0,317,13],[318,2,318,13],[319,2,319,13],[320,2,320,13],[321,2,321,13],[322,0,322,13],[323,0,323,13],[327,0,327,13],[311,2,311,13],[312,3,312,13],[313,3,313,13],[314,2,314,13],[315,3,315,14],[316,3,316,14],[303,3,303,13],[304,3,304,13],[305,0,305,13],[307,2,307,13],[308,2,308,13],[309,0,309,13],[310,1,310,14],[297,0,297,13],[298,0,298,13],[299,2,299,13],[300,2,300,13],[301,2,301,13],[302,3,302,13],[306,1,306,13],[290,3,290,13],[291,3,291,13],[292,3,292,13],[293,3,293,13],[294,2,294,13],[296,0,296,10],[295,0,295,13],[285,4,285,6],[285,7,285,9],[285,10,285,12],[287,2,287,13],[288,3,288,13],[289,3,289,13],[270,2,270,13],[280,1,280,13],[281,2,281,13],[283,2,283,13],[284,4,284,5],[284,7,284,8],[284,10,284,11],[271,1,271,13],[272,2,272,13],[273,3,273,13],[274,3,274,13],[275,3,275,13],[276,3,276,13],[277,3,277,13],[278,3,278,13],[279,3,279,13],[286,4,286,12],[264,4,264,13],[265,4,265,13],[266,4,266,13],[267,0,267,13],[268,0,268,13],[269,2,269,13],[258,4,258,13],[259,4,259,13],[260,4,260,13],[261,4,261,13],[262,3,262,13],[263,3,263,13],[250,0,250,13],[251,0,251,13],[252,0,252,13],[253,2,253,13],[256,2,256,13],[257,3,257,13],[242,2,242,13],[243,2,243,13],[244,2,244,13],[247,2,247,13],[248,0,248,13],[249,0,249,13],[254,2,254,13],[234,3,234,13],[235,2,235,13],[236,2,236,13],[239,1,239,13],[240,2,240,13],[241,2,241,13],[228,4,228,13],[229,4,229,13],[230,4,230,13],[231,3,231,13],[232,3,232,13],[233,3,233,13],[222,2,222,13],[223,2,223,13],[224,1,224,13],[225,2,225,13],[226,2,226,13],[227,3,227,13],[215,2,215,13],[216,2,216,13],[217,2,217,13],[218,2,218,13],[219,2,219,13],[221,2,221,13],[209,1,209,13],[210,2,210,13],[211,3,211,13],[212,3,212,13],[213,3,213,13],[214,3,214,13],[201,1,201,13],[202,1,202,13],[204,0,204,10],[205,0,205,13],[206,0,206,13],[208,0,208,13],[203,0,203,13],[192,2,192,13],[194,0,194,10],[195,1,195,13],[196,1,196,13],[198,1,198,13],[200,0,200,10],[185,4,185,5],[185,7,185,8],[185,10,185,11],[190,0,190,10],[191,0,191,1],[191,2,191,13],[189,0,189,13],[193,0,193,13],[199,0,199,13],[179,4,179,13],[180,4,180,13],[182,0,182,10],[183,0,183,13],[184,4,184,5],[184,7,184,8],[184,10,184,11],[173,4,173,13],[174,4,174,13],[175,4,175,13],[176,4,176,13],[177,4,177,13],[178,4,178,13],[171,4,171,5],[171,7,171,8],[171,10,171,11],[172,4,172,5],[172,7,172,8],[172,10,172,11],[165,0,165,13],[166,1,166,13],[167,1,167,13],[168,1,168,13],[169,1,169,13],[170,0,170,13],[158,0,158,13],[159,0,159,13],[160,1,160,13],[161,0,161,13],[163,0,163,10],[164,0,164,13],[153,4,153,5],[153,7,153,8],[153,10,153,11],[154,4,154,5],[154,7,154,8],[154,10,154,11],[145,0,145,13],[146,0,146,13],[149,0,149,10],[150,0,150,13],[151,0,151,13],[152,0,152,13],[139,0,139,10],[140,0,140,13],[141,1,141,13],[142,1,142,13],[143,1,143,13],[144,1,144,13],[128,0,128,13],[131,0,131,10],[132,0,132,13],[133,1,133,13],[135,0,135,13],[136,0,136,13],[120,1,120,13],[122,0,122,13],[123,1,123,13],[124,1,124,13],[126,0,126,13],[127,0,127,13],[134,1,134,12],[129,0,129,13],[113,1,113,13],[114,1,114,13],[115,0,115,13],[117,0,117,10],[118,1,118,13],[119,1,119,13],[125,1,125,13],[107,1,107,13],[108,0,108,13],[109,1,109,13],[110,1,110,13],[111,1,111,13],[112,1,112,13],[101,1,101,13],[102,1,102,13],[103,1,103,13],[104,1,104,13],[105,1,105,13],[106,1,106,13],[95,1,95,13],[96,1,96,13],[97,1,97,13],[98,1,98,13],[99,1,99,13],[100,0,100,13],[88,1,88,13],[90,0,90,10],[91,0,91,10],[92,0,92,13],[93,1,93,13],[94,1,94,13],[82,1,82,13],[83,1,83,13],[84,1,84,13],[85,1,85,13],[86,1,86,13],[87,1,87,13],[76,1,76,13],[77,1,77,13],[78,1,78,13],[79,1,79,13],[80,1,80,13],[81,1,81,13],[70,1,70,13],[71,2,71,13],[72,2,72,13],[73,2,73,13],[74,1,74,13],[75,1,75,13],[63,3,63,13],[65,0,65,13],[66,0,66,13],[67,1,67,13],[68,1,68,13],[69,1,69,13],[55,3,55,13],[57,1,57,13],[58,3,58,13],[59,3,59,13],[60,3,60,13],[62,1,62,13],[49,3,49,13],[50,3,50,13],[51,3,51,13],[52,3,52,13],[53,3,53,13],[54,3,54,13],[42,3,42,13],[43,3,43,13],[45,1,45,13],[46,1,46,13],[47,3,47,13],[48,3,48,13],[35,3,35,13],[36,3,36,13],[37,3,37,13],[38,3,38,13],[40,1,40,13],[41,3,41,13],[29,1,29,13],[30,3,30,13],[31,3,31,13],[32,3,32,13],[33,3,33,13],[34,3,34,13],[24,1,24,13],[25,2,25,13],[27,0,27,13],[28,0,28,13],[17,2,17,13],[18,1,18,13],[19,2,19,13],[20,1,20,13],[21,2,21,13],[7,5,7,10],[8,1,8,4],[8,5,8,8],[8,9,8,10],[9,1,9,4],[9,5,9,8],[9,9,9,10],[22,1,22,13],[23,2,23,13],[524,0,524,13],[528,0,528,13],[540,0,540,13],[6,6,6,13],[26,0,26,13],[64,0,64,13],[116,0,116,13],[130,0,130,13],[138,0,138,13],[148,0,148,13],[162,0,162,13],[181,0,181,13],[39,0,39,13],[44,0,44,13],[56,0,56,13],[61,0,61,13],[16,1,16,13],[10,1,10,4],[10,5,10,10],[11,1,11,4],[11,5,11,10],[14,1,14,13],[15,2,15,13],[7,1,7,4]]}
[]
[]
[null,null,null,null,null,null,"Self-Scoring Worksheet"]
[null,null,null,null,null,null,"Amended 2017 Housing Tax Credit Program"]
[null,null,null,null,null,null,"version 1/13/2016 9:12 AM"]
[null,null,null,null,null,null,"Updated 2016 12 02"]
[null,null,null,null,null,null,"If you are applying for Housing Tax Credits and deferred funding, complete the Deferred Loan Priority Checklist, located below the HTC Preference Priority section of Self-Scoring Worksheet."]
[null,"Development Name:"]
[null,"Development Number:",null,null,null,null,null,null,null,"(D Number)"]
[null,"Application Number:",null,null,null,null,null,null,null,"(M Number)"]
[null,"Development Location:"]
[null,"Development City:"]
[]
["Please note the following:"]
["1.","Minimum Point Requirements:"]
[null,null,"• Request for Minnesota Housing Finance Agency (Minnesota Housing) administered tax credits from the State’s volume cap must demonstrate the project is eligible for not less than 30 points.\n• Request for tax credits in association with Tax Exempt Bonds over and above the State’s allocation of Housing Tax Credits must demonstrate the project is eligible for not less than 30 points.\n• Minnesota Housing reserves the right to reject applications not meeting its Project Selection requirements as contained in the Procedural Manual, or to revise proposal features, and associated scoring, to ensure the project meets the requirements."]
["2.","Documentation of Points:"]
[null,null,"• Indicate the selection and/or preference priority points expected for your project.  Where multiple points per section are available please check the appropriate box for points claimed.  Attach directly to this self-scoring worksheet, a separate detail sheet and documentation that clearly supports points claimed.  Minnesota Housing will determine actual selection points awarded – points will not be awarded unless documentation is provided along with the application to justify the points claimed."]
["3.","Extended Duration:"]
[null,null,"• All projects with the exception of those obtaining tax credits in association with Tax Exempt Bonds over and above the State’s allocation of Housing Tax Credits must maintain the duration of low-income use for a minimum of 30 years.  The owner agrees that the provisions of IRC §§ 42(h)(6)(E)(i)(II) and 42(h)(6)(F) (which provision would permit the owner to terminate the restrictions under this agreement at the end of the compliance period in the event Minnesota Housing does not present the owner with a qualified contract for the acquisition of the project) do not apply to the project, and that the Section 42 income and rental restrictions shall apply for the period of 30 years beginning with the first day of the compliance period in which the building is a part of a qualified low income housing project. "]
["4.","Design Standards:"]
[null,null,"• The project must meet the requirements in the Minnesota Housing Rental Housing Design/Construction Standards and be evidenced by a Design Standards Certification form executed by the owner and architect.  Additional design requirements will be imposed if Large Family Housing points are claimed/awarded or points are claimed/awarded which require specific design elements (i.e., High Speed Internet, Universal Design). "]
["5.","A Declaration of Land Use Restrictive Covenants:"]
[null,null,"• Covering the rent restrictions and occupancy requirements presented at selection must be recorded against the property."]
["6.","Affirmative Fair Housing:"]
[null,null,"• Affirmative Fair Housing Marketing Regulations, held as centrally important by Minnesota Housing, require that each applicant carry out an affirmative marketing program to attract prospective buyers or tenants of all majority and minority groups in the housing market area regardless of race, creed, color, religion, sex, national origin, marital status, status with regard to public assistance, disability, sexual orientation, or familial status. All applicants must submit an Affirmative Fair Housing Marketing Plan at the time of 8609 documenting an acceptable plan to carry out an affirmative marketing program. "]
[]
["Round 1 - Minimum Threshold Requirements",null,null,null,null,null,null,null,null,null,null,null,null,null,"Help Text"]
["For applications submitted in Round 1, all applicants statewide must meet one of the following threshold types. Please indicate the Threshold item you meet:"]
["A. ","In the Metropolitan Area:"]
[null,null,"1.","New construction or substantial rehabilitation in which, for the term of the extended use period (term of the "]
[null,null,null,"Declaration of Land Use Restrictive Covenants), at least 75 percent of the total tax credit units are single room"]
[null,null,null,"occupancy units with rents affordable to households whose income does not exceed 30 percent of the area"]
[null,null,null,"median income."]
[null,null,"2.","New construction or substantial rehabilitation family housing projects that are not restricted to persons 55 years"]
[null,null,null,"old or older in which, for the term of the extended use period (term of the Declaration of Land Use Restrictive "]
[null,null,null,"Covenants), at least 75 percent of the total tax credit units contain two or more bedrooms and at least one-third"]
[null,null,null,"of the 75 percent contain three or more bedrooms; or"]
[null,null,"3.","Substantial rehabilitation projects in neighborhoods targeted by the city for revitalization."]
[]
["B.","Outside the Metropolitan Area:"]
[null,null,"1.","Projects which meet a locally identified housing need and which are in short supply in the local housing market as"]
[null,null,null,"evidenced by credible data such as local council resolution submitted with the application. (For Threshold Letter -"]
[null,null,null,"Sample Format, see HTC Procedural Manual, Reference Materials Index.)"]
[]
["C.","Projects that are not restricted to persons of a particular age group and in which, for the term of the extended use period "]
[null,"(term of the Declaration of Land Use Restrictive Covenants), a percentage of the units are set aside and rented to persons:"]
[null,null,"1.","with a serious and persistent mental illness as defined in Minnesota Statutes § 245.462, Subdivision 20,"]
[null,null,null,"paragraph (c);"]
[null,null,"2.","with a developmental disability as defined in United States Code, Title 42, Section 6001, paragraph (5), as amended;"]
[null,null,"3.","who have been assessed as drug dependent persons as defined in Minnesota Statutes § 254A.02, Subdivision 5, and"]
[null,null,null,"are receiving or will receive care and treatment services provided by an approved treatment program as defined in"]
[null,null,null,"Minnesota Statutes § 254A.02, Subdivision 2;"]
[null,null,"4.","with a brain injury as defined in Minnesota Statutes § 256B.093, Subdivision 4, paragraph (a); or"]
[null,null,"5.","with permanent physical disabilities that substantially limit major life activities, if at least 50 percent of the units"]
[null,null,null,"in the project are accessible as provided under Minnesota Rules Chapter 1341."]
[]
["D.","Preserve Existing Subsidized Housing:"]
[null,null,"1.","Projects, whether or not restricted to persons of a particular age group, which preserve existing subsidized housing,"]
[null,null,null,"if the use of tax credits is necessary to (1) prevent conversion to market rate use or (2) to remedy physical "]
[null,null,null,"deterioration of the project which would result in loss of existing federal subsidies; or"]
[]
["E.","Rural Development:"]
[null,null,"1.","Projects financed by Rural Development, which meet statewide distribution goals."]
[]
["Strategic Priority Policy Thresholds",null,null,null,null,null,null,null,null,null,null,null,null,null,"Help Text"]
["All projects with the exception of those obtaining tax credits in association with Tax Exempt Bonds over and above the State’s allocation of Housing Tax Credits must meet at least one of the Strategic Priority Policy Thresholds below in order to apply for Housing Tax Credits:"]
[null,"TOD on Fixed Transit: The proposed housing is located within one half mile of a planned or existing LRT, BRT, or commuter "]
[null,"rail station"]
[null,"Greater Minnesota Workforce Housing: Projects located in Greater Minnesota documenting all three of the following:"]
[null,"1. Need –  projects in communities with low vacancy (typically considered 4% and below, as documented by a market study or other third party data) and:"]
[null,null,"* That have experienced net job growth of 100 or more jobs"]
[null,null,"* With 15 percent or more of the workforce commuting 30 or more miles to work, or"]
[null,null,"* With planned job expansion documented by a local employer"]
[null,"2.  Employer Support"]
[null,"3.  Cooperatively Developed Plan – projects that are consistent with a community supported plan that addresses workforce housing needs"]
[null,"Economic Integration: Projects located in higher income communities outside of rural/tribal designated areas with access"]
[null,"to low and moderate wage jobs, meeting either First or Second Tier Community Economic Integration as defined in the Economic  "]
[null,"Integration Selection Priority on the \"Self-Scoring Worksheet.\""]
[null,"Tribal: Projects sponsored by tribal governments, tribally designated housing entities, or tribal corporate entities."]
[null,"Planned Community Development: Projects that contribute to Planned Community Development efforts, as defined in "]
[null,"section 6.A of the \"Housing Tax Credit Program Procedural Manual,\" to address locally identified needs and priorities, "]
[null,"in which local stakeholders are actively engaged."]
[null,"Preservation: Existing Federally assisted or other critical affordable projects eligible for points under the Preservation"]
[null,"Selection Priority on the \"Self-Scoring Worksheet.\""]
[null,"Supportive Housing: Permanent housing proposals with a least 5 percent of units (rounded up to the next full unit), with a "]
[null,"minimum of 4 units either:"]
[null,"1. Set aside and rented to households experiencing long-term homelessness targeted to single adults, or"]
[null,"2. Set aside and rented to households experiencing long-term homelessness, at significant risk of long-term homelessness, or as prioritized  for permanent supportive housing by the Coordinated Entry System, targeted to families with children or youth."]
[]
["Selection Priorities",null,null,null,null,null,null,null,null,null,null,"Point Range","Developer Claimed","Minnesota Housing Awarded"]
["Household Targeting",null,null,null,null,null,null,null,null,null,null,"10 Points",null,null,"Help Text"]
["Choose one of the following:"]
[null,"Large Family Housing: The proposal is for a project that provides family housing that is not restricted to persons 55 years "]
[null,"old or older. At least 75 percent of the total tax credit units must contain two or more bedrooms. The tenant selection plan"]
[null,"must give preference to families with minor children. (10 points)"]
[null,"Single Room Occupancy Housing1: At least 50 percent of the total tax credit units must be one bedroom or less with rents "]
[null,"affordable to households whose incomes do not exceed 30 percent of AMI. (10 points)"]
[null,"Special Populations1: At least 10 percent and up to 25 percent of the total units are set aside and targeted to special"]
[null,"populations*  (10 points)"]
["* Special Populations - Projects that are not restricted to persons of a particular age group and in which, for the term of the extended use period (Declaration of Land Use Restrictive Covenants), a percentage of the units are set aside and rented to persons with the following disabilities: "]
["(a)","a serious and persistent mental illness as defined in Minn. Stat. § 245.462, subdivision 20, paragraph (c);"]
["(b)","a developmental disability as defined in United States Code, Title 42, Section 6001, paragraph (5), as amended;"]
["(c)","assessed as drug dependent as defined in Minn. Stat. § 254A.02, subdivision 5, and are receiving or will receive care "]
[null,"and treatment services provided by an approved treatment program as defined in Minn. Stat. § 254A.02, Subdivision 2;"]
["(d)","a brain injury as defined in Minn. Stat. § 256B.093, Subdivision 4, paragraph (a); or"]
["(e)","permanent physical disabilities that substantially limit major life activities, if at least 50 percent of the units in the"]
[null,"project are accessible as provided under Minnesota Rules Chapter 1341."]
["To receive points under Special Populations, the proposal must meet all the following conditions:"]
["a)","The applicant must submit a letter from the county human services department OR a designated service provider"]
[null,"indicating the services available for the specific population and the referral resources that will be used for the units;"]
["b)","The Supportive Housing narratives, and any other forms and submittals identified in the Multifamily Rental Housing"]
[null,"Common Application Request for Proposal Guide, and the Multifamily Rental Housing Common Application Checklist;"]
["c)","The applicant agrees to pursue and continue renewal of rental assistance, operating subsidy, or service funding"]
[null,"contracts for as long as the funding is available."]
["1 Specific performance requirement relief provisions are available for projects receiving points under the Single Room Occupancy Housing or Special Populations categories of the Household Targeting Selection Priority for \"HTSP Units\".  Chapter 6.A. of the Tax Credit Procedural Manual should be referenced for additional details. Specific performance requirements will be incorporated into a Tax Credit Declaration of Land Use Restrictive Covenants and recorded with the property."]
[]
["Economic Integration",null,null,null,null,null,null,null,null,null,null,"2 to 9 Points",null,null,"Help Text"]
[null,"The proposed housing provides project economic integration by providing at least 25 percent but not greater than 80 percent of"]
[null,"the total units in the project as qualified HTC low income units (does not include full-time manager or other common space "]
[null,"units)  (2 points)"]
[null,"OR"]
["To promote economic integration, projects are awarded points for being located in higher income communities outside of rural/tribal designated areas that are close to jobs."]
[null,"First Tier: The proposed housing is located in a census tract eligible for (9 points)"]
[null,"Second Tier: The proposed housing is located in a census tract eligible for (7 points)"]
[null,"If points claimed for First Tier or Second Tier, you cannot also claim points for Rural/Tribal."]
["Economic integration areas maps and census tract listing are found on Minnesota Housing's website: "]
["Rural/Tribal Designated areas maps and census tract listing are found on Minnesota Housing's website: "]
["Additionally, find economic integration and rural/tribal designation area map overlays in the agency's community profiles interactive mapping tool."]
["http://www.mnhousing.gov/wcs/Satellite?c=Page&cid=1373870285684&pagename=External%2FPage%2FEXTStandardLayout"]
[]
["Rural/Tribal",null,null,null,null,null,null,null,null,null,null,"7 Points",null,null,"Help Text"]
["Points are awarded for projects located in rural/tribal areas outside of the Twin Cities Seven County Metropolitan Area."]
[null,"The proposed housing is located in a census tract eligible as a Rural/Tribal Designated Area (7 points)"]
[null,"You cannot claim points for Rural/Tribal if you have claimed points for Economic Integration Tier 1 or Tier 2."]
["Rural/Tribal Designated areas maps and census tract listing are found on Minnesota Housing's website: "]
["Additionally, find  rural/tribal designation area map overlays in the agency's community profiles interactive mapping tool: "]
["http://www.mnhousing.gov/wcs/Satellite?c=Page&cid=1373870285684&pagename=External%2FPage%2FEXTStandardLayout"]
[]
["Workforce Housing Communities",null,null,null,null,null,null,null,null,null,null,"3 to 5 Points",null,null,"Help Text"]
["Points are awarded for projects located in or near a city or township needing workforce housing (communities having a large number of jobs or job growth, individual employer growth, or having a large share of their workforce commuting long distances).  "]
[null,"The proposed housing is in a Top Job Center or Net Five Year Job Growth Community (5 points); OR"]
[null,"The proposed housing is in an Individual Employer Growth Community where an individual employer has added at least 100 net"]
[null,"jobs (for permanent employees of the company) during the previous five years, as evidenced by documentation signed by an authorized representative of the company, subject validation by Minnesota Housing (5 points); OR"]
[null,"The proposed housing is in a Long Commute Community (3 points)"]
["In the metropolitan area, project locations must be within 5 miles of a workforce housing city or township.  In Greater Minnesota, project locations must be within 10 miles of a workforce housing city or township. Top Job Centers, Net Five Year Job Growth communities, and Long Commute communities lists and maps are available on Minnesota Housing’s website at:"]
["Additionally, find proximity to workforce housing in the agency’s community profiles interactive mapping tool: "]
["http://www.mnhousing.gov/wcs/Satellite?c=Page&cid=1373870285684&pagename=External%2FPage%2FEXTStandardLayout"]
[]
["Federal/Local/Philanthropic Contributions",null,null,null,null,null,null,null,null,null,null,"0 to 10 Points",null,null,"Help Text"]
["Points are awarded for projects that are receiving contributions from the federal government; a local unit of government; an area employer; and/or a private philanthropic, religious or charitable organization.  "]
["Identity of Interest exclusion:  Contributions from any part of the ownership entity will be considered general partner cash and excluded from the calculation unless the contributions are awarded by  1) nonprofit charitable organizations pursuant to a funding competition; 2) local units of government; or 3) tribal governments or tribally designated housing entities."]
[]
[null,null,null,null,null,null,"/",null,null,"=",{"$f":"IF(H154=0,0,ROUND(E154/H154,3))","v":0}]
[null,null,null,null,"Total Federal/Local/ Philanthropic Contributions",null,null,"Total Development Cost",null,null,"% Contributions (rounded to the nearest tenth)"]
[null,null,null,null,"20.1% and above (10 points)",null,null,"5.1 - 10% (4 points)"]
[null,null,null,null,"15.1 - 20% (8 points)",null,null,"2.1 - 5%  (2 points)"]
[null,null,null,null,"10.1 - 15%  (6 points)",null,null,"0 - 2%  (0 points)"]
[]
["Federal/Local/Philanthropic Contributions include:"]
[null,"• Monetary grants/donations \n• Tax increment financing (calculate Net Present Value (NPV) by using NPV discounted by Applicable Federal Rate (AFR))\n• Tax abatement (calculate NPV by using NPV discounted by AFR for 30 years) \n• Land donation or city write down of the development site\n• In-kind work and materials donated at no cost\n• Local government donation/waiver of project specific costs, assessments or fees (e.g., SAC/WAC)\n• Reservation land not subject to local property taxes (calculate NPV by using NPV discounted by AFR for 30 years) \n• Reservation land with long-term low cost leases\n• Deferred loans with a minimum term that is co-terminus with the HTC Declaration with an interest rate at or below the AFR \n• Grants from nonprofit charitable organizations converted to deferred loans with a minimum term that is co-terminus with the HTC Declaration with an interest rate at or below the AFR.  Award letter from the nonprofit charitable organization contributor must be provided at the time of application verifying the project specific (restricted) contribution\n• Below Market Interest Rate (BMIR) Loans – calculate NPV based on the difference between the AFR and the BMIR rate (e.g. RD 515, NHASDA first mortgage).  \n• Historic Tax Credits"]
["To qualify for points for tax increment financing or tax abatement, there must be satisfactory documentation that the contribution is committed to the development at the time of application.\n\nAt the time of application, written documentation from the contributor justifying the amount and the terms of the contribution must be provided and be consistent with current market comparable costs.  The documentation must be in the form of a project specific letter of intent, city or council resolution, letter of approval, statement of agreement or eligibility, or memorandum of understanding.  In the case of Historic Tax Credits, at the time of application written documentation of eligibility through evidence of Historic Register listing or approval of Part 1—Evaluation of Significance.\n\nWithin 6 months of the date of selection (Minnesota Housing Board selection date) the applicant must provide Minnesota Housing with documentation of a firm commitment, authorization or approval of the federal/local/philanthropic contribution(s).  The documentation must state the amount, terms and conditions and be executed or approved at a minimum by the contributor.  Documentation containing words synonymous with “consider” or “may”, (as in “may award”) regarding the contribution, will not be considered acceptable.  Lack of acceptable documentation will result in the reevaluation and adjustment of the tax credits or RFP award, up to and including the total recapture of tax credits or RFP funds."]
[]
["Financial Readiness to Proceed",null,null,null,null,null,null,null,null,null,null,"0 to 14 Points",null,null,"Help Text"]
["Minnesota Housing shall award points to applicants who have secured funding commitments for one or more permanent funding sources at the time of application except that commitments for funding from Minnesota Housing and Funding Partners (i.e., Minnesota Department of Employment and Economic Development, Family Housing Fund, Greater Minnesota Housing Fund, Metropolitan Council Local Housing Incentive Account) are only included if obtained in a previous funding cycle/round.  \n\nCommitment documentation must state the amount, terms and conditions and be executed or approved by the lender or contributor and the applicant.  Documentation containing words synonymous with “consider” or “may”, (as in “may award”) regarding the commitment will not be considered acceptable.  Deferred Developer fee is not considered a permanent source of funding.\n\nThe calculation below must exclude first mortgage financing and any anticipated proceeds from the current tax credit request.\n\nSyndication proceeds from tax credits awarded in a previous cycle/round may be included if verification is included in the application.  Acceptable verification is an executed syndicator agreement or executed Letter of Intent from the syndicator which is acceptable to Minnesota Housing;"]
["The executed Letter of Intent must:"]
[null,"• Be current within 15 days of submission of the application"]
[null,"• Contain a projected closing date for the development"]
[null,"• Contain a projected equity price for the purchase of the credit"]
[null,"• Contain a detailed explanation of the assumptions being used by the syndicator to arrive at the projected equity price"]
["The calculation below must exclude first mortgage financing and any anticipated proceeds from the current tax credit request.\n  "]
[null,null,null,null,null,null,"/",null,null,"=",{"$f":"IF(H172=0,0,ROUND(E172/H172,3))","v":0}]
[null,null,null,null,"Total Eligible Funding secured, awarded or committed",null,null,"Total Development Cost less first mortgage and current LIHTC Request",null,null,"Funds Committed (rounded to the nearest tenth)"]
[null,null,null,null,"70% or more of funding secured, awarded or committed (14 points)"]
[null,null,null,null,"60% to 69.9% of funding secured, awarded or committed (12 points)"]
[null,null,null,null,"50% to 59.9% of funding secured, awarded or committed (10 points)"]
[null,null,null,null,"40% to 49.9% of funding secured, awarded or committed (8 points)"]
[null,null,null,null,"30% to 39.9% of funding secured, awarded or committed (6 points)"]
[null,null,null,null,"20% to 29.9% of funding secured, awarded or committed (4 points)"]
[null,null,null,null,"10% to 19.9% of funding secured, awarded or committed (2 points)"]
[null,null,null,null,"9.9% and below of funding secured, awarded or committed (0 points)"]
[]
["Intermediary Costs (Soft Costs)",null,null,null,null,null,null,null,null,null,null,"0 to 6 Points",null,null,"Help Text"]
["Points will be given to projects with the lowest intermediary costs on a sliding scale based on percentage of total development costs.  For HTC selected projects, this percentage will be enforced at issuance of the IRS Form 8609."]
[null,null,null,null,null,null,"/",null,null,"=",{"$f":"IF(H185=0,0,ROUND(E185/H185,3))","v":0}]
[null,null,null,null,"Intermediary Cost Amount",null,null,"Total Development Cost",null,null,"Intermediary Percentage (rounded to the nearest tenth)"]
[null,null,null,null,"0.0 - 15% (6 points)",null,null,"25.1 - 30% (1 point)"]
[null,null,null,null,"15.1 - 20% (3 points)",null,null,"30.1 & over  (0 points)"]
[null,null,null,null,"20.1 - 25%  (2 points)"]
[]
["Unacceptable Practices",null,null,null,null,null,null,null,null,null,null,"-1 to -25 Points",{"$f":"HTCUnacceptablePractices","v":0},null,"Help Text"]
[null,null,"Minnesota Housing will impose penalty points for unacceptable practices as identified in Chapter 2 G. of the Housing Tax "]
[null,null,"Credit Procedural Manual."]
[]
["Eventual Tenant Ownership",null,null,null,null,null,null,null,null,null,null,"1 Point",null,null,"Help Text"]
[null,"The proposal includes a financially viable plan to transfer 100 percent of the HTC unit ownership after the end of the"]
[null,"15-year compliance period from the initial ownership entity (or Minnesota Housing approved \"Transfer of Ownership\") of the project to tenant ownership."]
[]
[null,"The unit purchase price at time of sale must be affordable to buyers with incomes meeting HTC eligibility requirements.  To be eligible, the buyer must have an HTC qualifying income at the time of initial occupancy (HTC rental tenant) or time of purchase.  The plan must incorporate an ownership exit strategy and the provision of services including homeownership education and training.  The Declaration of Land Use Restrictive Covenants will contain provisions ensuring compliance with these eventual tenant ownership  commitments by the Owner.  (Refer also to Chapter 4 W of the HTC Procedural Manual for additional information.)\n\nUntil the time the HTC units are purchased by qualified tenants or in the event the HTC units are not acquired by qualified tenants, the owner will extend the duration of low-income use for the full extended use period (30 years)."]
[]
["Community Recovery - Planned Community Development",null,null,null,null,null,null,null,null,null,null,"3 Points",null,null,"Help Text"]
[null,"The proposal contributes to Planned Community Development efforts, as defined in section 6.A. of the Housing Tax Credit"]
[null,"Procedural Manual, to address locally identified needs and priorities, in which local stakeholders are actively engaged. Comprehensive plans, land use plans and general neighborhood planning documents are not by themselves considered evidence of Planned Community Development. In addition to submission of evidence of Planned Community Development, evidence from an appropriate representative of the city or town that the housing proposal contributes to the objectives of the plan must be provided."]
[]
["Preservation",null,null,null,null,null,null,null,null,null,null,"9 to 30 Points",null,null,"Help Text"]
["Important Note: Dual Application and Pre-Application Required"]
["Applicant claiming points under this section must submit a dual application, as defined in the Multifamily Consolidated RFP Guide, if the development contains 40 units or greater.\n\nIn order to be eligible for points under this section, applicant must participate in mandatory technical assistance session and provide required submissions prior to May 2, 2016 for HTC Round 1 and prior to December 16, 2016 for HTC Round 2, as detailed in the Housing Tax Credit Procedural Manual Section 7.A.4. Applicant must provide Agency’s “Preliminary Determination of Preservation Eligibility” letter which reflects threshold and points taken below."]
[]
["You must select one of the following three thresholds in order to continue with the scoring portion of this section:"]
[null,"Risk of Loss Due To Market Conversion"]
[null,"1.","Expiration of contract/use-restrictions"]
[null,null,"a.","Existing property at risk of conversion to market rate housing within five years of application date (attach copies of "]
[null,null,null,"relevant expiring contracts including eligibility dates, loan documents that describe the ability to pre-pay the financing including required approvals and/or penalties or other evidence of eligibility for use-restricted units to convert to market rate); OR"]
[null,null,"b.","Existing tax credit developments must be eligible to exercise their option to file for a Qualified Contract, and have"]
[null,null,null,"not previously exercised their option; AND"]
[null,"2.","Market for conversion evidenced by low physical vacancy rate (4% or lower) for market rate comparable units "]
[null,null,"(comparable units to be validated by Minnesota Housing at Minnesota Housing's discretion); AND"]
[null,"3.","The property's ability to command market rents as evidenced by direct comparison to local market comparable units"]
[null,null,"and amenities. Conversion scenario must result in sufficient additional revenue to fund improvements and amenities necessary to match market comparable units as evidenced by Three Year Conversion Model and market study (Market comparable and improvement cost estimates to be validated by Minnesota Housing at Minnesota Housing’s discretion); AND"]
[null,"4.","Location in a jobs growth or household growth area as defined in the Agency’s community profiles interactive mapping tool;"]
[null,null,"http://www.mnhousing.gov/wcs/Satellite?c=Page&cid=1373870285684&pagename=External%2FPage%2FEXTStandardLayout"]
[null,null,"AND"]
[null,"5.","Fifteen (15) or more years have passed since initial loan closing or most recent tax credit placed in service date."]
[null,null,"NOTE: Minnesota Housing, at its sole discretion, must agree that a market exists for a conversion to market rate housing."]
[null,"Risk of Loss Due to Critical Physical Needs"]
[null,"1.","Fifteen (15) or more years have passed since initial loan closing or most recent tax credit placed in service date;  AND"]
[null,"2.","Critical physical needs identified by third party assessment to support the following conclusions:"]
[null,null,"a.","As-is condition of a property's physical components(s) does not meet:"]
[null,null,null,"i.","HUD's Uniform Physical Condition Standards (UPCS),  OR"]
[null,null,null,"ii.","For building exterior components and mechanical systems for which UPCS does not provide a measure, critical"]
[null,null,null,null,"need(s) supported by an independent third party professional certification; AND"]
[null,null,"b.","Repair/replacement of major physical plant components have been identified which will result in 15+ years sustained"]
[null,null,null,"operations; AND"]
[null,null,"c.","Identified scope of critical physical needs exceeds the available reserves by at least $5,000 per unit, as evidenced by "]
[null,null,null,"Three Year Critical Needs Model; AND"]
[null,"3.","Location in one of three geographic priority areas: jobs growth area, household growth area OR an area designated as"]
[null,null,"having a large affordable housing gap, as evidenced in Minnesota Housing’s community profiles interactive mapping tool, "]
[null,null,"http://www.mnhousing.gov/wcs/Satellite?c=Page&cid=1373870285684&pagename=External%2FPage%2FEXTStandardLayout"]
[null,null,"or as evidenced by tribal housing authority waiting list."]
[null,"Risk of Loss Due to Ownership Capacity"]
[null,"1.","Fifteen (15) or more years have passed since initial loan closing or most recent tax credit placed in service date;  AND"]
[null,"2.","Current ownership puts units at risk of remaining decent, safe, or affordable. Applicable events might include bankruptcy,"]
[null,null,"insolvency, self-determination by nonprofit board; AND"]
[null,"3.","Location in one of three geographic priority areas: jobs growth area, household growth area OR an area designated as"]
[null,null,"having a large affordable housing gap, as evidenced in Minnesota Housing’s community profiles interactive mapping tool"]
[null,null,"http://www.mnhousing.gov/wcs/Satellite?c=Page&cid=1373870285684&pagename=External%2FPage%2FEXTStandardLayout"]
[null,null,"or as evidenced by tribal housing authority waiting list. "]
[null,null,"Minnesota Housing, at its sole discretion, must agree that a change in ownership is necessary for units to remain decent, safe, or affordable.  "]
["Scoring:"]
["For projects meeting one of the three Thresholds above, choose points under Existing Federal Assistance or Critical Affordable"]
["Units at Risk of Loss below."]
["1. Existing Federal Assistance"]
["Definition: Any housing receiving project based rental assistance, operating subsidies, or mortgage interest reduction payments under a U.S. Department of Housing and Urban Development (\"HUD\"), U.S. Department of Agriculture Rural Development (\"RD\"), NAHASDA or other program that is not scheduled to sunset or expire.\n\nIn order to obtain points for existing federal assistance, the owner shall continue renewals of existing project based housing subsidy payment contract(s) for as long as the assistance is available. Except for \"good cause\" the owner must not evict existing subsidized residents and must continue to renew leases for those residents."]
[null,"1.a.","Existing Federally Assisted Units (20 points)"]
[null,null,"Points cannot be claimed/awarded under the Rental Assistance preference priority if points are claimed/awarded for the same units for Existing Federal Assistance under the Preservation selection priority."]
[null,null,null,null,"AND"]
[null,"1.b.","Score for the appropriate number of federally assisted units currently under contract for preservation:"]
[null,null,"i.","Metro or Greater Minnesota MSA*"]
[null,null,null,null,"12-30 units (1 point)"]
[null,null,null,null,"31-60 units (3 points)"]
[null,null,null,null,"61-100 units (7 points)"]
[null,null,null,null,"101+ units (10 points)"]
[null,null,null,"* Greater Minnesota MSA (Metropolitan Statistical Area) as defined by HUD: Duluth, St. Cloud, Fargo/Moorhead, Rochester, Mankato, Lacrosse, Grand Forks, Minneapolis/St. Paul MSA outside of the 7 county metro (including Chisago, Isanti, Sherburne, and Wright Counties) Greater Minnesota MSAs are found on Minnesota Housing's website: Census Tracts."]
[null,null,"ii.","Greater Minnesota/Rural"]
[null,null,null,null,"8-20 units (3 points)"]
[null,null,null,null,"21-40 units (5 points)"]
[null,null,null,null,"41+ units (10 points)"]
["OR"]
["2. Critical Affordable Units at Risk of Loss"]
[null,"2.a.","Any housing with a current recorded deed restriction limiting rent or income restrictions at or below the greater of 80% of "]
[null,null,"statewide median income or area median income. Includes existing tax credit units, existing federal assistance not described in paragraph 1. above (i.e., 202, 236, etc.), or other programs limiting income and rent restrictions as stated above."]
[null,"NOTICE OF DEFICIENCY - To receive points in 2.a. you must choose an appropriate threshold and also claim and be awarded points for at least three of the following scoring criteria: Economic Integration, Location Efficiency, Workforce Housing Communities, OR QCT/Community Revitalization; AND must also claim and be awarded points under Serves Lowest Income/Rent Reduction for either Option 1 OR Option 2, AND Option 3.  Following is a recap of points claimed."]
[null,null,"Following is a recap of what you have selected:"]
[null,null,null,"Economic Integration"]
[null,null,null,"Location Efficiency"]
[null,null,null,"Workforce Housing"]
[null,null,null,"QCT/Community Revitalization"]
[null,null,null,"Option 1 - Serves Lowest Income Tenants/Affordable to the Local Workforce"]
[null,null,null,"Option 2 - Serves Lowest Income Tenants/Affordable to the Local Workforce"]
[null,null,null,"Option 3 - Serves Lowest Income Tenants/Affordable to the Local Workforce"]
[null,"AND"]
[null,null,"Must also claim and be awarded points for at least three of the following scoring criteria: Economic Integration, Location Efficiency, Workforce Housing Communities, OR QCT/Community Revitalization; AND must also claim and be awarded points under Serves Lowest Income Tenants/Rent Reduction for either Option 1 OR Option 2, AND Option 3. (9 points)"]
[]
[null,"2.b.","Funder Collaboration - 5 additional points for projects eligible under 2.a."]
[null,null,null,null,null,null,"/",null,null,"=",{"$f":"IF(H285=0,0,ROUND(E285/H285,3))","v":0}]
[null,null,null,null,"Funder Commitments",null,null,"Total Development Cost",null,null,"Equal to or greater than 10.0% (rounded to the nearest tenth)"]
[]
[null,null,"Funder Commitments include:"]
[null,null,null,"• Debt forgiveness"]
[null,null,null,"• Assumption of debt"]
[null,null,null,"• Commitment of new funds"]
[null,null,null,"• Extension of loan term"]
[null,null,null,"• Forgiveness of interest payable"]
[null,null,null,"• Reduction in interest rate (measured as amount of interest saved over term of loan)"]
[null,null,"Commitments must contain no contingencies other than receipt of a tax credit award. At the time of application, written documentation from the funder justifying the amount and the terms of the contribution must be provided. Within six months of the date of selection (Minnesota Housing Board selection date) the applicant must provide Minnesota Housing with documentation of a firm commitment, authorization, or approval of the contribution. The documentation must state the amount, terms, and conditions, and be executed or approved at a minimum by the funder. Documentation containing words synonymous with “consider” or “may”, (as in “may award”) regarding the contribution, will not be considered acceptable.  Lack of acceptable documentation will result in the reevaluation and adjustment of the tax credits or RFP award, up to and including the total recapture of tax credits or RFP funds.\n\nPoints cannot be taken under 2.b. Funder Collaboration and the Federal/Local/Philanthropic Contributions scoring criterion for the same sources."]
[]
["Permanent Supportive Housing for Households Experiencing Homelessness",null,null,null,null,null,null,null,null,null,null,"5 to 115 Points",null,null,"Help Text"]
["A. Minnesota Housing Competitive Round or Tax Exempt Points (\"non-Bonus\" points) (5 to 10 Points)"]
["\"Non-Bonus\" points will be awarded to permanent housing proposals in which a minimum of 5% (rounded up to the next full unit) of the total units, but no fewer than 4 units, are either*:"]
[null,"1.","Set aside and rented to households experiencing long-term homelessness targeted to single adults, OR"]
[null,"2.","Set aside and rented to households experiencing long-term homelessness, at significant risk of long-term homelessness, or"]
[null,null,"as prioritized for permanent supportive housing by the Coordinated Entry System, targeted to families with children or youth"]
[null,null,null,"5% to 9.99%, but no fewer than 4 units (5 points)"]
[null,null,null,"10% to 49.99%, but no fewer than 7 units (7 points)"]
[null,null,null,"50% to 100%, but no fewer than 20 units  (10 points)"]
["For the purposes of this scoring category:\n\n*A youth is defined as a person under age 25 not living with a parent or guardian, and includes youth with his/her own children.\n*Long-term homelessness is as defined in Minnesota Rules, Chapter 4900.3705.\n*At significant risk of long-term homelessness is defined as (a) households that are homeless or recently homeless with members who have been previously homeless for extended periods of time and are faced with a situation or set of circumstances likely to cause the household to become homeless in the near future, and (b) previously homeless persons who will be discharged from correctional, medical, mental health or treatment centers who lack sufficient resources to pay for housing and do not have a permanent place to live.\n*As prioritized for permanent supportive housing by the Coordinated Entry System defined by the Statewide Coordinated Entry standards and protocol as adopted by the local Continuum of Care.\n\nB. Minnesota Housing Competitive Round or Non-Tax Exempt Points (“bonus” points)  (100 Points)\nFor proposals receiving points under A above, 100 points (“bonus points”) will be available until a total of  $2,100,000 (estimated 25 percent  of Minnesota Housing’s administered credit authority) in tax credits are awarded for qualifying permanent housing proposals targeting families with children or youth experiencing long-term homelessness, at significant risk of long-term homelessness, or as prioritized for permanent supportive housing by the Coordinated Entry selected in the 2017 Housing Tax Credit competitions.  Once this maximum amount is reached, the 100 points (“bonus” points) will no longer be awarded for the remaining 2017 Housing Tax Credit Program competitive funding rounds.  If qualified per the requirements of this section, applicants may claim the “bonus points”.  Minnesota Housing will make point reductions relating to the “bonus points” funding limits following its review of all applications in the funding round which claim these points.  Qualified proposals may earn a maximum of 10 points (“non-bonus” points) and may continue to compete in the appropriate set-aside. If bonus points are claimed, without regard to whether points are awarded, the Tax Credit Declaration of Land Use Restrictive Covenants will contain these population targeting requirements:"]
[null,"You must make a selection under A. “non-Bonus” points in order to claim “bonus” points."]
[null,null,"5% or more (rounded up to the next full unit), but no fewer than 4 units, will target families with children or youth "]
[null,null,"experiencing  long-term homelessness, at significant risk of long-term homelessness, or as prioritized for permanent supportive housing by the Coordinated Entry System (100 points)"]
["C. Consistency with Local Continuum of Care Priorities (1 to 5 Points)\nFor proposals receiving points under A above, additional points will be available for consistency with local needs identified by the local Continuum of Care. Proposals that will target units for a minimum of 5% of units (rounded up to the next full unit), but no fewer than 4 units, consistent with published Continuum of Care Priorities (published Priorities are available on Minnesota Housing’s website at):"]
[null,"You must make a selection under A. “non-Bonus” points in order to claim points under Continuum of Care Priorities."]
[null,"1.","Continuum of Care Household Type Priorities:"]
[null,null,null,"5% or more, but no fewer than 4 units, targeted to Continuum of Care Household Type Priority One (3 points); OR"]
[null,null,null,"5% or more, but no fewer than 4 units, targeted to Continuum of Care Household Type Priority Two (1 point);"]
[null,"2.","Continuum of Care Subpopulation Type Priorities:"]
[null,null,null,"5% or more, but no fewer than 4 units, targeted to Continuum of Care Subpopulation Type Priority One (2 points) ;OR"]
[null,null,null,"5% or more, but no fewer than 4 units, targeted to Continuum of Care Subpopulation Type Priority Two (1 point)"]
["To receive points  for Permanent Supportive Housing for Households Experiencing Homelessness, the proposal must meet all of the following conditions:"]
[null,"a)","the applicant must complete and submit the Supportive Housing application materials, including the narratives, forms and"]
[null,null,"submittals identified in the Multifamily Rental Housing Common Application Request for Proposal Guide, and the Multifamily Rental Housing Common Application Checklist; and"]
[null,"b)","the applicant agrees to pursue and continue renewal of rental assistance, operating subsidy, or service funding contracts for"]
[null,null,"as long as the funding is available."]
["A proposal which is awarded scoring points from this category and is selected to receive tax credits will be required to comply with the  reporting requirements for Permanent Supportive Housing for Households Experiencing Homelessness, as defined by Minnesota Housing.  The Tax Credit Declaration of Land Use Restrictive Covenants, including a specific Rider to the Declaration, will contain performance requirements related to these permanent supportive housing units for households experiencing homelessness and will be recorded with the property."]
[]
["High Speed Internet Access",null,null,null,null,null,null,null,null,null,null,"1 Point",null,null,"Help Text"]
[null,"The development will provide High Speed Internet access via installation of all appropriate infrastructure and connections for"]
[null,"cable, DSL or wireless internet service to every unit in the development. This will be a design requirement if points are taken."]
[]
["Location Efficiency",null,null,null,null,null,null,null,null,null,null,"1 to 9 Points",null,null,"Help Text"]
["Points will be awarded for transit oriented developments or developments that promote location efficiency based on a combination of access to transportation and walkability."]
["Twin Cities Metropolitan Area:"]
["In the Twin Cities Metropolitan area, points will be awarded for a combination of three areas: access to transit, walkability, and transit oriented development."]
[null,"1)","Access to Transit:"]
[null,"To receive points for access to transit in the Metropolitan area, a development must be:"]
[null,null,null,"Located within one half mile of a planned or existing LRT, BRT, or commuter rail station (5 points); OR"]
[null,null,null,"Located within one quarter mile of a fixed route stop on Metro Transit’s Hi-Frequency Network (4 points); OR"]
[null,null,null,"Located within one quarter mile of a high service public transportation fixed route stop (2 points); OR"]
[null,null,null,"Located within one half mile of an express bus route stop (2 points); OR"]
[null,null,null,"Located within one half mile of a park and ride (2 points)"]
[null,"2)","Walkability"]
[null,"To receive points for walkability, a development must receive an award of points for Access to Transit above, and be:"]
[null,null,null,"Located in an area with a walk score of 70 or more according to www.walkscore.com** (2 points); OR"]
[null,null,null,"Located in an area with a walk score between 50 and 69 according to www.walkscore.com** (1 point)"]
[null,"3)","Transit Oriented Development:"]
[null,"To receive up to 2 additional points for transit oriented development, a development must be located within one quarter mile of a completed or planned LRT, BRT, or commuter rail station. One point for a development which meets one of the following, and two points for a development which meets two or more of the following:"]
[null,null,null,"Parking: Parking for residential units or visitors is not more than the smallest allowable parking minimum under local"]
[null,null,null,"zoning requirements. If no residential parking or visitor parking is required under local zoning, no more than 0.2 visitor parking spaces per residential unit are provided."]
[null,null,null,"Building Orientation and Connections: Currently existing walkable or bikeable connections to station area via sidewalk"]
[null,null,null,"or trail or funding secured to create such connections, and at least one accessible building entrance oriented toward such connections, and parking is not situated between building and station area."]
[null,null,null,"Density:  Site density at the maximum allowable density under the local comprehensive plan."]
[null,null,null,"Alternative Means: Car sharing (Where one or more passenger automobiles are provided for common use by residents,"]
[null,null,null,"bike storage, shared parking arrangements with adjacent property owners, etc. which results in a reduction in the local minimum parking requirement, and parking for residential units in not more than the local minimum parking requirement, or if no residential parking or visitor parking is required under local zoning, no more than 0.2 visitor parking spaces per residential unit are provided."]
[]
["Greater Minnesota"]
["In Greater Minnesota, location efficiency points will be awarded in a combination of access to transit and walkability in areas with fixed route transit service, and a combination of dial-a-ride, walkability, and access to jobs in areas without fixed route transit service."]
["A. For areas with fixed route transit service:"]
[null,"1)","Access to Transit:"]
[null,"To receive points for access to transit, a development in Greater Minnesota must be:"]
[null,null,null,"Located within one quarter mile of a planned or existing public transportation fixed route stop  (7 points); OR"]
[null,null,null,"Located between one quarter mile and one half mile of a a planned or existing public transportation fixed route stop"]
[null,null,null,"(4 points); OR"]
[null,null,null,"Located less than one half mile of an express bus route stop or park and ride lot (4 points);"]
[null,"2)","Walkability"]
[null,"To receive points for walkability, a development must receive an award of points for Access to Transit above, and be:"]
[null,null,null,"Located in an area with a walk score of 70 or more according to www.walkscore.com**  (2 points); OR"]
[null,null,null,"Located in an area with a walk score between 50 and 69 according to www.walkscore.com** (1 point)"]
["B. For areas without fixed route transit service:"]
["To receive four points for location efficiency, a development must be:"]
[null,null,"Located within a census tract that is within 5 miles of 2,000 low and moderate wage jobs for urban census tracts, or within"]
[null,null,"5 miles of 5,000 low and moderate wage jobs for rural census tracts, AND meets BOTH of the following:"]
[null,null,null,"• The proposed housing has access to demand response/dial-a-ride* services during standard workday hours; AND"]
[null,null,null,"• The proposed housing is in an area with a walk score of 50 or more according to www.walkscore.com**"]
["To receive three points for location efficiency, a development must be:"]
[null,null,"Located within a census tract that is within 5 miles of 2,000 low and moderate wage jobs for urban census tracts, or within"]
[null,null,"5 miles of 5,000 low and moderate wage jobs for rural census tracts, AND meets BOTH of the following:"]
[null,null,null,"• The proposed housing has access to demand response/dial-a-ride* services during standard workday hours; AND"]
[null,null,null,"• The proposed housing is in an area with a walk score between 35 and 49 according to www.walkscore.com**"]
["To receive  two points for location efficiency, a development must be:"]
[null,null,"Located within a census tract that is within 5 miles of 2,000 low and moderate wage jobs for urban census tracts, or within"]
[null,null,"5 miles of 5,000 low and moderate wage jobs for rural census tracts, AND meets ONE of the following:"]
[null,null,null,"• The proposed housing has access to demand response/dial-a-ride* services during standard workday hours; OR"]
[null,null,null,"• The proposed housing is in an area with a walk score of 50 or more according to www.walkscore.com**"]
["To receive one point for location efficiency, a development must be:"]
[null,null,"Located within a census tract that is within 5 miles of 2,000 low and moderate wage jobs for urban census tracts, or within"]
[null,null,"5 miles of 5,000 low and moderate wage jobs for rural census tracts, AND meets ONE of the following:"]
[null,null,null,"• The proposed housing has access to demand response/dial-a-ride* services during standard workday hours; OR"]
[null,null,null,"• The proposed housing is in an area with a walk score between 35 and 49 according to www.walkscore.com**"]
["*Applicants must provide documentation of access and availability of service and describe how the service is a viable transit alternative that could be used for transportation to work, school, shopping, services and appointments. Minnesota Department of Transportation defines dial-a-ride as: “A demand-responsive service in which the vehicle is requested by telephone and vehicle routing is determined as requests are received.  Origin-to-destination service with some intermediate stops is offered.  Dial-A-Ride is a version of the taxicab using larger vehicles for short-to-medium distance trips in lower-density subregions”.\n\nAt the time of application, the applicant must submit a map identifying the location of the project with exact distances to the eligible public transit station/stop and include a copy of the route, span and frequency of service.\n\nAccess to transportation maps and census tract listings are found on Minnesota Housing’s website. Additionally, find these details in the agency’s community profiles interactive mapping tool."]
["http://www.mnhousing.gov/wcs/Satellite?c=Page&cid=1373870285684&pagename=External%2FPage%2FEXTStandardLayout"]
[]
["Universal Design",null,null,null,null,null,null,null,null,null,null,"3 Points",null,null,"Help Text"]
["Universal Design Unit Definition: A unit that includes all Minimum Essential Universal Design Features below, along with 8 Optional Features for units in a new construction or adaptive re-use project, and 4 Optional Features for units in a rehabilitation project. Type A accessible units (as referenced in Minnesota Housing's Rental Housing Design and Construction Standards) are also considered to meet the definition of a Universal Design unit for the purposes of this scoring category."]
[null,"An elevator building with 100% of HTC units meeting the definition of a Universal Design Unit (3 points); OR"]
[null,"A non-elevator building with at least 10% of HTC units meeting the definition of a Universal Design Unit (3 points)"]
["Minimum Essential Universal Design Features "]
[null,"• ","At least one bedroom or space that can be converted to a bedroom (without changing door locations for new construction"]
[null,null,"or adaptive re-use) on an accessible level and connected to an accessible route."]
[null,"• ","42” minimum hallways within a unit for new construction or adaptive re-use"]
[null,"• ","At least one three quarter bathroom on an accessible level with five foot open radius for new construction or adaptive re-"]
[null,null,"use, and clear floor space of 30” x 48” for rehabilitation"]
[null,"• ","Lever handles on all doors and fixtures"]
[null,"• ","Provide wall blocking in all tub and shower areas for new construction or adaptive re-use, and for rehabilitation if showers"]
[null,null,"are being replaced"]
[null,"• ","Door thresholds flush with the floor with maximum threshold height of ½” beveled or ¼”square edged"]
[null,"• ","Kitchen and laundry appliances have parallel approach clear floor space with all controls within maximum height of 48”."]
[null,null,"Range controls must have lockout feature. Stackable laundry units with a maximum reach range of 54” will meet this"]
[null,null,"requirement."]
[null,"• ","All common spaces and amenities provided in the housing development located on an accessible route"]
[null,"• ","For new construction or adaptive re-use, deck or patio spaces have a step-less transition from dwelling unit meeting door"]
[null,null,"threshold requirements, with decking gaps no greater than 1/4\""]
[null,"• ","Universal Design features are incorporated in an aesthetic, marketable, non-institutional manner"]
["Optional Features"]
[null,"• ","High contract finish selections that include floor to wall transitions, top treads of stairs, counters and adjacent flooring and walls"]
[null,"• ","Single lever, hands free or touch faucets"]
[null,"• ","At least 50% of kitchen storage space within reach range. This can include pull-out shelves, full extension glide drawers or "]
[null,null,"pantry design"]
[null,"• ","A variety of work surface heights in kitchen and one five foot open radius"]
[null,"• ","Roll under vanity or sink in twenty five percent of Universal Design qualifying units, rounded up to the nearest whole "]
[null,null,"number"]
[null,"• ","Cabinet hardware with “D” type pull handles or operation for people with limited dexterity"]
[null,"• ","Zero threshold shower or transfer space at tub is provided for minimum of half the qualifying Universal Design units, "]
[null,null,"rounded up to the nearest whole number"]
[null,"• ","Slip resistant flooring in kitchens and baths"]
[null,"• ","Toilets provided with seats 17” – 19” from the floor"]
[null,"• ","Windows are provided with maximum sill height of 36”, parallel clear floor space and locks/operating mechanism within"]
[null,null,"48\" and easily operable with one hand. Sidelight or view window at main entry door from a seated position"]
[null,"• ","Thermostats designed for visually impaired or ability to monitor and operate with electronic device such as a tablet "]
[null,null,"computer"]
[null,"• ","Closet storage is adjustable in a majority of the closets provided"]
[null,"• ","Audio/Visual Doorbell"]
[null,"• ","Covered entry with adequate lighting and interior or exterior bench space for parcels or groceries"]
[null,"• ","Lettering and numbering with all characters and symbols contrasting with their background"]
[null,"• ","Braille characters included to the left on all interior signage"]
[null,"• ","Parking spaces provided for at least fifty percent of Universal Design qualifying units, rounded up to the nearest whole"]
[null,null,"number, with a five foot wide adjacent auxiliary space connected to accessible route"]
[null,"• ","Residential elevator or chair lift space structured for future use in multiple level homes"]
[null,"• ","Enterprise Green Communities Model Specifications are used for applicable sections for the Universal Design qualifying "]
[null,null,"units"]
[null,"• ","On-site physical activity is provided for in a fitness area, biking or walking path or community garden"]
[null,"• ","Other modifications which make units livable for disabled populations, as demonstrated by credible evidence provided"]
[null,null,"in the application, at the sole discretion of Minnesota Housing"]
[]
["Smoke Free Buildings",null,null,null,null,null,null,null,null,null,null,"1 Point",null,null,"Help Text"]
[null,"The project will institute and maintain a written policy* prohibiting smoking in all the units and all common areas within the"]
[null,"building/s of the project. The project will include a non-smoking clause in the lease for every household (1 point)"]
[null,"Projects awarded a point in this scoring criteria will be required to maintain the smoke-free policy for the term of the declaration. \n"]
[null,"*The written policy must be submitted with the application and should include procedures regarding transitioning to smoke-free for existing residents and establishment of smoking areas outside of units and common areas if applicable. Consequences for violating the smoke-free policy are determined by owner but must be included in the written policy."]
[]
["Preference Priorities",null,null,null,null,null,null,null,null,null,null,"Point Range","Developer Claimed","Minnesota Housing Awarded"]
["Serves Lowest Income Tenants/Rent Reduction",null,null,null,null,null,null,null,null,null,null,"5 to 16 Points",null,null,"Help Text"]
["Scores are based on gross rent level including utilities before rental assistance.  Eligible units must have rents affordable to households whose incomes do not exceed 30 percent or 50 percent of median income without rental assistance.\n\nIn addition to the elected income limit of 50 percent or 60 percent AMI for the full term of the declaration (refer to the Minimum Set-Aside), the applicant agrees to maintain deeper rent structuring for which selection points are requested.\n\nApplicants may choose either option 1 or 2, and in addition, option 3 and/or option 4 for the development.  This selection will restrict rents only (tenant incomes will not be restricted to the 50 percent or 30 percent income level by claiming points in this section)."]
["Option 1 – ",null,null,"A project in which 100 percent of the HTC unit rents representing ",null,null,null,null,null,null,null,"units"]
[null,null,null,"are at the county 50 percent HUD area median rent limit (10 points)"]
["Option 2 – ",null,null,"A project in which at least 50 percent of the HTC unit rents representing ",null,null,null,null,null,null,null,"units"]
[null,null,null,"are at the county 50 percent HUD area median rent limit (5 points)"]
[null,"AND"]
["Option 3 – ",null,null,null,"In addition to Option 1 or 2, a project that restricts the rents of all the units identified in Option 1 or 2 to the "]
[null,null,null,null,"50 percent HUD area median rent limit for a minimum of ten years after the last placed in service date for any building in the property (3 additional points)"]
[null,"AND/OR"]
["Option 4 – ",null,null,"In addition to Option 1 or 2, a project that further restricts 30 percent of the above"]
[null,null,null,"restricted units to the county 30 percent HUD area median rent limit representing",null,null,null,null,null,null,null,null,"units"]
[null,null,null,"(3 additional points)"]
[]
["Note: If points are claimed/awarded for this category, then no points may be claimed/awarded from the selection priority category of Rental Assistance for the same units."]
[]
["Important"]
[null,"If points are claimed/awarded for Options 1 or 2, all 50 percent rent restricted units must meet the 50 percent area median rent for a minimum of five years after the last placed in service date for any building in the property.  After the five year period has expired, rent may be increased to the 60 percent rent limit over a three year period with increases not to exceed the amount listed in the table below, provided that more restrictive threshold, selection priority or funding requirements do not apply.\n\nIf points are claimed/awarded for Option 4, all 30 percent rent restricted units must meet the 30 percent area median rent for a minimum of five years after the last placed in service date for any building in the property.  After the five year period has expired, rent may be increased to the 40 percent rent limit over a three-year period with increases not to exceed the amount listed in the table below, provided that more restrictive threshold, selection priority or funding requirements do not apply."]
[null,null,null,null,null,null,null,"30% of 50%",null,"30% of 30%"]
[null,null,null,null,null,"YEAR",null,"Rent Levels",null,"Rent Levels"]
[null,null,null,null,null,"1 – 5",null,"30% of 50%",null,"30% of 30%"]
[null,null,null,null,null,6,null,"30% of 53%",null,"30% of 33%"]
[null,null,null,null,null,7,null,"30% of 57%",null,"30% of 37%"]
[null,null,null,null,null,8,null,"30% of 60%",null,"30% of 40%"]
[null,"If points are claimed/awarded for this category’s Option 3, all 50 percent rent restricted units must meet the 50 percent area median rent for a minimum of ten years after the last placed in service date for any building in the property. After the ten year period has expired, rent may be increased to the 60 percent rent limit over a three year period with increases not to exceed the amount listed in the table below, provided that more restrictive threshold, selection priority, or funding requirements do not apply."]
[null,null,null,null,null,null,null,"30% of 50%"]
[null,null,null,null,null,"YEAR",null,"Rent Levels"]
[null,null,null,null,null,"1 – 10",null,"30% of 50%"]
[null,null,null,null,null,11,null,"30% of 53%"]
[null,null,null,null,null,12,null,"30% of 57%"]
[null,null,null,null,null,13,null,"30% of 60%"]
[null,"Minnesota Housing will incorporate these restrictions into the Declaration of Land Use Restrictive Covenants.  The applicant must demonstrate to sole satisfaction of Minnesota Housing that the property can achieve these reduced rents and remain financially feasible [IRC § 42(m)(2)].  Points are contingent upon financial plans demonstrating feasibility, positive cash flow on a 15-year pro forma and gaining Minnesota Housing management approval (for management, operational expenses, and cash flow assumptions)."]
[]
["Rental Assistance",null,null,null,null,null,null,null,null,null,null,"2 to 21 Points",null,null,"Help Text"]
["Priority is given to an owner that submits with the application a fully executed binding commitment (i.e., binding Resolution/binding Letter of Approval from the governing body) for project based rental assistance awarded in accordance with 24 CFR Ch. IX, Section 983.51 or are effectively project based by written contract. For the purposes of this scoring category, project based rental assistance is defined as a project-specific funding stream that supports the operations of the property, reduces the tenant rent burden, and provides for the tenant paid portion of rent to be no greater than 30% of household income. Site-based Group Residential Housing and awards of project based McKinney Vento Continuum of Care funding will be considered project based rental assistance.         \nThe assisted units must be located in buildings on the project site. A development that has existing rental assistance meeting the definition of federal assistance under the Preservation scoring category is not eligible for an award of points under Rental Assistance.\n  \nRent for assisted units must be at or below Fair Market Rents (or appropriate payment standard for the project area).  Receiving these points and agreeing to a minimum number of assisted units does not release owners from their obligations under the Minnesota Human Rights Act and Section 42 prohibiting refusal to lease to the holder of a voucher of eligibility under Section 8 of the United States Housing Act of 1937 because of the status of the prospective tenant as such a holder.\n\nA current request for Minnesota Housing Rental Assistance will not receive Rental Assistance points.  A past award of existing Rental Assistance will be counted toward meeting the required percentages.  \n\nIndicate the applicable combinations of the below components.  Points for A, B, C and D cannot be claimed in any combination. "]
[]
[null,"(A) For developments agreeing to set aside and having the required binding commitment for 100 percent of the total units for"]
[null,"project based rental assistance (17 points)"]
[null,"(B) For developments agreeing to set aside and having the required binding commitment for at least 51 percent of the total units"]
[null,"for project based rental assistance  (13 points)"]
[null,"(C) For developments agreeing to set aside and having the required binding commitment for at least 20 percent but under 51"]
[null,"percent of the total units for project based rental assistance  (10 points)"]
[null,"(D) For developments agreeing to set aside and having the required binding commitment for at least 5 percent but under 20"]
[null,"percent of the total units, representing at least 4 units, for project based rental assistance  (6 points)"]
[null,"(E) For selection components A, B, C, or D above, if, in addition, the above binding commitments are coupled with a binding"]
[null,"commitment to provide the project based rental assistance for a minimum 10 year new or remaining contract term (4 points)"]
[null,"(F) For selection components A, B, C, or D above, if, in addition, the above binding commitments are coupled with a binding"]
[null,"commitment to provide the project based rental assistance for a 4 to 9 new or remaining contract term (2 points)"]
["NOTE: If points are claimed/ awarded under any of the above, then no points may be claimed/ awarded from the preference priority categories of Serves Lowest-Income Tenants/Rent Reduction for the same units.\n\nNOTE:  Points cannot be claimed/ awarded under the Rental Assistance preference priority if points are claimed/ awarded for the same units for Existing Federal Assistance under the Preservation selection priority."]
[null,"(G) For developments that will provide other Rental Assistance (e.g., Section 8, portable tenant based, an award of McKinney"]
[null,"Vento Continuum of Care rent assistance (which is tenant based, sponsor based, or for leasing), tenant based Group Residential Housing or other similar programs approved by Minnesota Housing) as evidenced at application by documentation of commitment of assistance (2 points)"]
["To receive these points, the applicant must comply with all program requirements for the assistance for which priority points were given, including maintaining rents within the appropriate payment standard for the project area in which the project is located for the full compliance and extended use period of the housing tax credits.\n\nFor project based rental assistance in conjunction with a binding commitment for an “extended term contract” at time of application the applicant must submit a binding commitment for the “extended term contract” for project based assistance for a minimum of 4 or 10 years which is signed by the Local Housing Authority or other similar entity.  As a condition of Carryover or 8609, the applicant must submit a fully executed copy of the “extended term contract” for the project based assistance to be included in the development."]
[]
["QCT/Community Revitalization and Tribal Equivalent Areas",null,null,null,null,null,null,null,null,null,null,"1 Point",null,null,"Help Text"]
[null,"The project is located in a Qualified Census Tract (See Qualified Census Tract – Reference Materials Index) and is part of a "]
[null,"a concerted plan that provides for community revitalization consistent with the definition of Planned Community Development contained in section 6.A. of the HTC Procedural Manual. In addition to submission of evidence of Planned Community Development, evidence from an appropriate representative of the city or town that the housing proposal contributes to the objectives of the plan must be provided.\n\nTribal Equivalent Areas published on Minnesota Housing’s website are also eligible for one point. Additionally, find these areas in the agency’s community profiles interactive mapping tool."]
[null,"http://www.mnhousing.gov/wcs/Satellite?c=Page&cid=1373870285684&pagename=External%2FPage%2FEXTStandardLayout"]
[]
["Cost Containment",null,null,null,null,null,null,null,null,null,null,"4 Points",null,null,"Help Text"]
[null,"Four points will be available to the 50% of developments with the lowest costs within each development type/location group "]
[null,"(subject to the methodology described in the Revised Cost Containment Methodology (1012112):"]
[null,"http://www.mnhousing.gov/get/MHFA_1019457"]
[null,"Applicants may claim these points and Minnesota Housing will make point reductions following its review of costs for all applications in the funding round.\n\nApplications seeking 4% tax credits for use in conjunction with tax exempt bonds are not eligible to claim points through this Cost Containment priority.  Only applications seeking tax credits through Minnesota Housing’s 9% Competitive application process for tax credits are eligible to claim points through this priority.\n\nNOTE:  Proposals that believe they have contained their costs should select these points.\n  \nOnly proposals that claim cost containment points on the self-scoring worksheet and are awarded points through the process described above will receive cost containment points.\n\nCAUTION:  If a project receives points under this criterion, failure to keep project costs under the applicable cost threshold will be considered an unacceptable practice and result in negative 4 points being awarded in all of the applicant’s tax credit submissions in the next funding round in which submissions are made.\n\nIf developers are concerned about their costs and keeping them within the “applicable cost threshold,” they should not claim the cost-containment points."]
[]
["TOTAL POINTS",null,null,null,null,null,null,null,null,null,null,null,{"$f":"SUM(HTCScoringDeveloperCommunityRecovery, HTCScoringDeveloperCostContainment, HTCScoringDeveloperEconomicIntegration, HTCScoringDeveloperEventualTenantOwnership, HTCScoringDeveloperFederalLocal, HTCScoringDeveloperFinancialReadiness, HTCScoringDeveloperHighSpeedInternetAccess, HTCScoringDeveloperHouseholdTargeting, HTCScoringDeveloperIntermediaryCosts, HTCScoringDeveloperLocationEfficiency, HTCScoringDeveloperPermanentSupportiveHousing, HTCScoringDeveloperPreservation, HTCScoringDeveloperQCT, HTCScoringDeveloperRentalAssistance, HTCScoringDeveloperRuralTribal, HTCScoringDeveloperServesLowestIncomTenants, HTCScoringDeveloperSmokeFreeBuildings, HTCScoringDeveloperUnacceptablePractices, HTCScoringDeveloperUniversalDesign, HTCScoringDeveloperWorkforceHousing)","v":0}]
[]
["Deferred Loan Priority Checklist"]
["If your application includes a request for deferred loans (including dual applicants with deferred loan requests in either application), please answer the following questions.  "]
[]
["Note:  Dual applicants that include a request for deferred loans in either of their applications should complete the following."]
[]
["Selection Priorities"]
["Private Investment",null,null,null,null,null,null,null,null,null,null,null,null,null,"Help Text"]
[null,"A portion of the contributions included in the Federal, Local, Philanthropic, Contribution calculation is considered "]
[null,"private investment. A description and evidence of the private investment is provided."]
[]
["LTH Rental Assistance",null,null,null,null,null,null,null,null,null,null,null,null,null,"Help Text"]
[null,"For proposals meeting the Permanent Supportive Housing for Households Experiencing Homelessness criteria, if rent"]
[null,"assistance has been secured and committed, provide evidence."]
[]
["Serves Lowest Income Tenants/Affordable to the Local Workforce",null,null,null,null,null,null,null,null,null,null,null,null,null,"Help Text"]
[null,"Indicate the income and rent restrictions with which the housing proposal will comply if awarded funding from Minnesota Housing:"]
[null,null," Option 1: A project in which 100 percent of the affordable unit rents are at the 50 percent MTSP and incomes do not"]
[null,null," exceed 60% MTSP"]
[null,null," Option 2: A project in which at least 50 percent of the affordable unit rents are at the 50 percent MTSP and incomes do "]
[null,null,"not exceed 60% MTSP"]
[null,null,"Option 3:  A project which meets the Greater MN Workforce Housing Strategic Priority in which 100 percent of "]
[null,null,"the affordable unit rents are affordable to the local workforce"]
[null,null,null,null,"AND"]
[null,null,"Option 4: In addition to Option 1,2, or 3 a project that further restricts units to the 30% of Metro Median rent limit and"]
[null,null,"incomes do not exceed 30% of Metro Median income, adjusted for household size of 5 or more"]
[]
["Temporary – Senior Housing Pilot",null,null,null,null,null,null,null,null,null,null,null,null,null,"Help Text"]
[null,"The proposal will create new units for seniors 62 and older and provides a replicable model that could be implemented on a "]
[null,"larger scale, and meets all five of the following**:"]
[null,"1. Households with the Greatest Needs: The proposal includes at least 5% of units, with a minimum of 4 units, set aside for each "]
[null,"of the following:"]
[null,null,"• set aside and rented to households with incomes at or below 30% AMI, and\n• set aside and targeted to households with home-and-community-based service needs."]
[null,"2. Services Component: The proposed housing must:"]
[null,null,"• at a minimum have a tenant services coordinator to coordinate home-and-community based services for residents from the full range of available providers serving the area, and market toward households that need Home and Community Based Services\n• at a maximum have a service provider with a Comprehensive License operating at the property, and with the property registered with the Department of Health as Housing with Services (a traditional assisted living model)"]
[null,"3. Aging in Place: The proposal is designed to promote aging in place, and includes a feasible plan for increasing physical"]
[null,"supports and support services to meet the future needs of residents aging in place."]
[null,"4. Market Need: The proposed housing is located in a market area with a documented need for the type of housing"]
[null," being proposed."]
[null,"5. Capacity: The proposal is presented by a team with experience and capacity for providing quality senior housing."]
[null,"You cannot select Temporary - Senior Housing Pilot and the Strategic Priority Policy Threshold for Greater Minnesota Workforce Housing in combination.  If you want to select Temporary - Senior Housing Pilot, you must unselect Greater Minnesota Workforce Housing.”"]
[null,"**Among comparable proposals, priority will be given to those providing the largest percentage of units at 30% AMI, those with the most comprehensive and viable plan for supporting aging in place, and to those with the lowest deferred funding request."]
[]
["Permanent Supportive Housing",null,null,null,null,null,null,null,null,null,null,null,null,null,"Help Text"]
[null,"The proposed housing development has at least 5% of the units (rounded up to the next full unit), with a minimum of 4 units, that provide permanent supportive housing for homeless or special populations. Choose one of the following:"]
[null,null,"Set aside and rented to households experiencing long-term homelessness targeted to single adults, or"]
[null,null,"Set aside and rented to households experiencing long-term homelessness, at significant risk of long-term"]
[null,null,"homelessness, or as prioritized for permanent supportive housing by the Coordinated Entry System, targeted to families with children or youth, or"]
[null,null,"Set aside and rented to Special populations defined as follows:"]
[null,"* Special Populations - Projects that are not restricted to persons of a particular age group and in which, for the term of the extended use period (Declaration of Land Use Restrictive Covenants), a percentage of the units are set aside and rented to persons with the following disabilities: "]
[null,"(a)","a serious and persistent mental illness as defined in Minn. Stat. § 245.462, subdivision 20, paragraph (c);"]
[null,"(b)","a developmental disability as defined in United States Code, Title 42, Section 6001, paragraph (5), as amended;"]
[null,"(c)","assessed as drug dependent as defined in Minn. Stat. § 254A.02, subdivision 5, and are receiving or will receive care "]
[null,null,"and treatment services provided by an approved treatment program as defined in Minn. Stat. § 254A.02, Subdivision 2;"]
[null,"(d)","a brain injury as defined in Minn. Stat. § 256B.093, Subdivision 4, paragraph (a); or"]
[null,"(e)","permanent physical disabilities that substantially limit major life activities, if at least 50 percent of the units in the"]
[null,null,"project are accessible as provided under Minnesota Rules Chapter 1341."]
[]
["Greater Minnesota Workforce Housing – Meaningful Employer Contribution",null,null,null,null,null,null,null,null,null,null,null,null,null,"Help Text"]
[null,"The project meets the Greater Minnesota Workforce Housing Strategic Priority and has received a meaningful contribution"]
[null," from an area employer."]
[null,"You must check Greater Minnesota Workforce Housing under the Strategic Priority Policy Thresholds to be eligible for this category."]
[]
["Housing Tax Credit Applicants Signature Block"]
[]
["Under penalty of perjury, Owner hereby certifies the information provided herein is true and accurate."]
[]
["Name of Owner:"]
[]
[]
[]
[]
[]
["By:"]
[null,"(Signature)"]
[]
[]
["Of:","     "]
[null,"(Name of Legal Entity)"]
[]
[]
["Its:","     "]
[null,"(Title) (Managing General Partner)"]
[]
[]
[null,"     "]
[null,"(Print or type name of signatory)"]
[]
["Note for Housing Tax Credit Applicants:  During the competition process, Minnesota Housing’s review of the submitted self-scoring worksheet is only to validate that the points claimed are eligible, to reduce points claimed if not eligible, and to determine points awarded.  Minnesota Housing will not award additional points which are not initially claimed by the Applicant/Owner.  Many performance obligations are created by the claiming of certain scoring points.  As such, Minnesota Housing cannot and will not assume the position of creating any such performance obligations on behalf of the Applicant/Owner.  In addition, applications funded under the Joint Powers Agreement must also comply with the suballocators selection criteria defined in their Qualified Allocation Plan."]

{"sheet":"CheckBoxLinks","index":3,"n_rows":109,"n_cols":20,"rows_kept":109,"cut":false,"hidden":true,"merged":[[0,0,0,2],[0,7,0,9]]}
["Deferred Only Checkboxes",null,null,null,null,null,null,"HTC Checkboxes",null,null,null,"Coversheet Check Boxes"]
["Range Name","Check Box Returned Value","Point Value",null,null,null,null,"Range Name","Check Box Returned Value","Point Value",null,"Range Name","Value",null,null,null,null,null,null,"Unacceptable Practices List Values"]
["DeferredOnlyTOD",false,25,null,null,null,null,"HTCMinimumThresholdInMetroArea1",false,null,null,"HTCOnlyScoresheet",false]
["DeferredOnlySeniorHousing",false,25,null,null,null,null,"HTCMinimumThresholdInMetroArea2",false,null,null,"DeferredOnlyScoresheet",false,null,null,null,null,null,null,-1]
["DeferredOnlyGreaterMNWorkforceHousing",false,25,null,null,null,null,"HTCMinimumThresholdInMetroArea3",false,null,null,"HTCandDeferredScoresheet",false,null,null,null,null,null,null,-2]
["DeferredOnlyEconomicIntegrationTier1",false,34,"DeferredOnlyEconomicIntegrationTier1and2",null,null,null,"HTCMinimumThresholdOutsideMetroArea",false,null,null,null,null,null,null,null,null,null,null,-3]
["DeferredOnlyEconomicIntegrationTier2",false,32,null,null,null,null,"HTCMinimumThresholdRestriction1",false,null,null,{"$f":"DeferredOnlyDevelopmentName","v":0},null,null,null,null,null,null,null,-4]
["DeferredOnlyTribalSponsored",false,25,null,null,null,null,"HTCMinimumThresholdRestriction2",false,null,null,{"$f":"DeferredOnlyDevelopmentNumber","v":0},null,null,null,null,null,null,null,-5]
["DeferredOnlyPlannedCommunityDevelopment",false,28,null,null,null,null,"HTCMinimumThresholdRestriction3",false,null,null,{"$f":"DeferredOnlyProjectNumber","v":0},null,null,null,null,null,null,null,-6]
["DeferredOnlyPreservationMarketConversionLoss",false,25,"DeferredOnlyPreservationStrategic",null,null,null,"HTCMinimumThresholdRestriction4",false,null,null,{"$f":"DeferredOnlyDevelopmentLocation","v":0},null,null,null,null,null,null,null,-7]
["DeferredOnlyPreservationCriticalPhysicalNeedsLoss",false,25,null,null,null,null,"HTCMinimumThresholdRestriction5",false,null,null,{"$f":"DeferredOnlyDevelopmentCity","v":0},null,null,null,null,null,null,null,-8]
["DeferredOnlyPreservationOwnershipCapacityLoss",false,25,null,null,null,null,"HTCMinimumThresholdPreserveExistingSubsidized",false,null,null,{"$f":"DeferredOnlyWorkbookPath","v":0},null,null,null,null,null,null,null,-9]
["DeferredOnlyPermanentSupportiveHousingSingleAdults",false,25,null,null,null,null,"HTCMinimumThresholdRuralDevelopment",false,null,null,{"$f":"HTCDevelopmentName","v":0},null,null,null,null,null,null,null,-10]
["DeferredOnlyPermanentSupportiveHousingFamilies",false,25,null,null,null,null,"HTCStrategicThresholdTODonFixedTransit",false,25,null,{"$f":"HTCDevelopmentNumber","v":0},null,null,null,null,null,null,null,-11]
["DeferredOnlyPermanentSupportiveHousingSpecialPopulations",false,25,null,null,null,null,"HTCStrategicThresholdGreaterMNWorkforceHousing",false,25,null,{"$f":"HTCApplicationNumber","v":0},null,null,null,null,null,null,null,-12]
["DeferredOnlyHouseholdTargetingLargeFamily",false,10,null,null,null,null,"HTCStrategicThresholdEconomicIntegration",false,25,null,{"$f":"HTCDevelopmentLocation","v":0},null,null,null,null,null,null,null,-13]
["DeferredOnlyHouseholdTargetingSingleRoom",false,10,null,null,null,null,"HTCStrategicThresholdTribal",false,25,null,{"$f":"HTCDvelopmentCity","v":0},null,null,null,null,null,null,null,-14]
["DeferredOnlyHouseholdTargetingSpecialPopulations",false,10,null,null,null,null,"HTCStrategicThresholdPlannedCommunityDevelopment",false,25,null,null,null,null,null,null,null,null,null,-15]
["DeferredOnlyEconomicIntegrationMixedIncome",false,2,null,null,null,null,"HTCStrategicThresholdPreservation",false,25,null,null,null,null,null,null,null,null,null,-16]
["DeferredOnlyRuralTribalDesignatedArea",false,7,null,null,null,null,"HTCStrategicThresholdSupportiveHousing",false,25,null,null,null,null,null,null,null,null,null,-17]
["DeferredOnlyWorkforceHousingTopJobCenter",false,5,"DeferredOnlyWorkforceHousing",null,null,null,"HTCHouseholdTargetingLargeFamily",false,10,null,null,null,null,null,null,null,null,null,-18]
["DeferredOnlyWorkforceHousingEmployerGrowthCommunity",false,5,null,null,null,null,"HTCHouseholdTargetingSingleRoom",false,10,null,null,null,null,null,null,null,null,null,-19]
["DeferredOnlyWorkforceHousingLongCommuteCommunity",false,3,null,null,null,null,"HTCHouseholdTargetingSpecialPopulations",false,10,null,null,null,null,null,null,null,null,null,-20]
["DeferredOnlyFederalLocalContributions20",false,10,null,null,null,null,"HTCEconomicIntegrationQualifiedLowIncomeUnits",false,2,"HTCEconomicIntegration",null,null,null,null,null,null,null,null,-21]
["DeferredOnlyFederalLocalContributions15",false,8,null,null,null,null,"HTCEconomicIntegrationTier1",false,9,null,null,null,null,null,null,null,null,null,-22]
["DeferredOnlyFederalLocalContributions10",false,6,null,null,null,null,"HTCEconomicIntegrationTier2",false,7,null,null,null,null,null,null,null,null,null,-23]
["DeferredOnlyFederalLocalContributions5",false,4,null,null,null,null,"HTCRuralTribal",false,7,null,null,null,null,null,null,null,null,null,-24]
["DeferredOnlyFederalLocalContributions2",false,2,null,null,null,null,"HTCWorkforceHousingCommunitiesTopJobCenter",false,5,"HTCWorkforceHousingCommunities",null,null,null,null,null,null,null,null,-25]
["DeferredOnlyFederalLocalContributions0",false,0,null,null,null,null,"HTCWorkforceHousingCommunitiesTopEmployerGrowth",false,5]
["DeferredOnlyPrivateInvestment",false,2,null,null,null,null,"HTCWorkforceHousingCommunitiesLongCommute",false,3]
["DeferredOnlyFinancialReadinessToProceed70",false,14,null,null,null,null,"HTCFederalLocalPhilanthropicContributions",{"$f":"HTCFederalLocalPhilanthropicPercentageContributions","v":0},null,"0-10"]
["DeferredOnlyFinancialReadinessToProceed60",false,12,null,null,null,null,"HTCFinancialReadiness",{"$f":"HTCFinancialReadinessFunds","v":0},null,"0-14"]
["DeferredOnlyFinancialReadinessToProceed50",false,10,null,null,null,null,"HTCIntermediaryCosts",{"$f":"HTCIntermediaryCostsPercentage","v":0},null,"0-6"]
["DeferredOnlyFinancialReadinessToProceed40",false,8,null,null,null,null,"HTCUnacceptablePractices",{"$f":"HTCUnacceptablePracticesSelectedValue","v":0},null,"-10 to -25"]
["DeferredOnlyFinancialReadinessToProceed30",false,6,null,null,null,null,"HTCEventualTenantOwnership",false,1]
["DeferredOnlyFinancialReadinessToProceed20",false,4,null,null,null,null,"HTCCommunityRecovery",false,3]
["DeferredOnlyFinancialReadinessToProceed10",false,2,null,null,null,null,"HTCPreservationLossDueToMarketConversion",false,null,"HTCPreservationThresholds"]
["DeferredOnlyFinancialReadinessToProceed9",false,0,null,null,null,null,"HTCPreservationLossDueToCriticalPhysicalNeeds",false]
["DeferredOnlyPreservationExistingFederallyAssisted",false,null,null,"DeferredOnlyExistingFederalAssistance",null,null,"HTCPreservationLossDueToOwnershipCapacity",false]
["DeferredOnlyPreservationExistingFederallyAssistedMetroUnits12",false,1,"DeferredOnlyPreservationExistingFederallyAssistedMetro",null,null,null,"HTCPreservationExistingFederallyAssistedUnits",false,20,null,"HTCPreservationALLExistingFederallyAssistedUnits"]
["DeferredOnlyPreservationExistingFederallyAssistedMetroUnits31",false,3,null,null,null,null,"HTCPreservationExistingFederallyAssistedUnitsMetro12",false,1,"HTCPreservationExistingFederallyAssistedMetro"]
["DeferredOnlyPreservationExistingFederallyAssistedMetroUnits61",false,7,null,null,null,null,"HTCPreservationExistingFederallyAssistedUnitsMetro31",false,3]
["DeferredOnlyPreservationExistingFederallyAssistedMetroUnits101",false,10,null,null,null,null,"HTCPreservationExistingFederallyAssistedUnitsMetro61",false,7]
["DeferredOnlyPreservationExistingFederallyAssistedRuralUnits8",false,3,"DeferredOnlyPreservationExistingFederallyAssistedRural",null,null,null,"HTCPreservationExistingFederallyAssistedUnitsMetro101",false,10]
["DeferredOnlyPreservationExistingFederallyAssistedRuralUnits21",false,5,null,null,null,null,"HTCPreservationExistingFederallyAssistedRural8",false,3,"HTCPreservationExistingFederallyAssistedRural"]
["DeferredOnlyPreservationExistingFederallyAssistedRuralUnits41",false,10,null,null,null,null,"HTCPreservationExistingFederallyAssistedRural21",false,5]
["DeferredOnlyPreservationCriticalAffordableUnits",false,9,null,null,null,null,"HTCPreservationExistingFederallyAssistedRural41",false,10]
["DeferredOnlyPermanentSupportiveHousingSetAside5",false,5,"DeferredOnlyPermanentQuestionA",null,null,null,"HTCPreservationCriticalAffordableUnits",false,9]
["DeferredOnlyPermanentSupportiveHousingSetAside10",false,7,null,null,null,null,"HTCPreservationFunderCollaboration",{"$f":"HTCPreservationFunderCollaborationPercentage","v":0},5,"if meets 30% rule"]
["DeferredOnlyPermanentSupportiveHousingSetAside50",false,10,null,null,null,null,"HTCPermanentSupportiveHousingSetAside5",false,5,"HTCPermanentSupportiveHousingSetAside"]
["DeferredOnlyPermanentSupportiveHousingYouthAndFamily",false,2,"DeferredOnlyPermanentQuestionsBandC",null,null,null,"HTCPermanentSupportiveHousingSetAside10",false,7]
["DeferredOnlyPermanentSupportiveHousingLocalHouseholdCarePriority1",false,3,null,null,null,null,"HTCPermanentSupportiveHousingSetAside50",false,10]
["DeferredOnlyPermanentSupportiveHousingLocalHouseholdCarePriority2",false,1,null,null,null,null,"HTCPermanentSupportiveHousingYouthAndFamily",false,100]
["DeferredOnlyPermanentSupportiveHousingSubpopulationCarePriority1",false,2,null,null,null,null,"HTCPermanentSupportiveHousingHouseholdTypePriority1",false,3,"HTCPermanentSupportiveHousingHouseholdType"]
["DeferredOnlyPermanentSupportiveHousingSubpopulationCarePriority2",false,1,null,null,null,null,"HTCPermanentSupportiveHousingHouseholdTypePriority2",false,1]
["DeferredOnlyLTHRentalAssistance",false,10,null,null,null,null,"HTCPermanentSupportiveHousingHouseholdSubpopulationPriority1",false,2,"HTCPermanentSupportiveHousingHouseholdSubpopulation"]
["DeferredOnlyHighSpeedInternetAccess",false,1,null,null,null,null,"HTCPermanentSupportiveHousingHouseholdSubpopulationPriority2",false,1]
["DeferredOnlyLocationEfficiencyMetroLRTBRT",false,5,"DeferredOnlyLocationEfficiencyMetroAccessToTransit","DeferredOnlyLocationEfficiencyMetro",null,null,"HTCHighSpeedInternetAccess",false,1]
["DeferredOnlyLocationEfficiencyMetroHiFrequencyNetwork",false,4,null,null,null,null,"HTCLocationEfficiencyMetroAccessToTransitLRTBRT",false,5,"HTCLocationEfficiencyMetroAccessToTransit"]
["DeferredOnlyLocationEfficiencyMetroFixedRouteStop",false,2,null,null,null,null,"HTCLocationEfficiencyMetroAccessToTransitHiFrequency",false,4]
["DeferredOnlyLocationEfficiencyMetroExpressBusRouteStop",false,2,null,null,null,null,"HTCLocationEfficiencyMetroAccessToTransitFixedRoute",false,2]
["DeferredOnlyLocationEfficiencyMetroParkAndRide",false,2,null,null,null,null,"HTCLocationEfficiencyMetroAccessToTransitExpressBus",false,2]
["DeferredOnlyLocationEfficiencyMetroWalkScore70",false,2,"DeferredOnlyLocationEfficiencyMetroWalkScore",null,null,null,"HTCLocationEfficiencyMetroAccessToTransitParkAndRide",false,2]
["DeferredOnlyLocationEfficiencyMetroWalkScore50",false,1,null,null,null,null,"HTCLocationEfficiencyMetroWalkability70",false,2]
["DeferredOnlyLocationEfficiencyMetroTransitOrientedParking",false,1,"DeferredOnlyLocationEfficiencyMetroTransitOriented",null,null,null,"HTCLocationEfficiencyMetroWalkability50",false,1]
["DeferredOnlyLocationEfficiencyMetroTransitOrientedBuildingOrientation",false,1,null,null,null,null,"HTCLocationEfficiencyMetroTransitOrientedParking",false,null,"HTCLocationEfficiencyMetroTransitOriented"]
["DeferredOnlyLocationEfficiencyMetroTransitOrientedDensity",false,1,null,null,null,null,"HTCLocationEfficiencyMetroTransitOrientedBuildingOrientation",false]
["DeferredOnlyLocationEfficiencyMetroTransitOrientedAlternativeMeans",false,1,null,null,null,null,"HTCLocationEfficiencyMetroTransitOrientedDensisty",false]
["DeferredOnlyLocationEfficiencyGreaterMNFixedRouteStopOneQuarterMile",false,7,"DeferredOnlyLocationEfficiencyGreaterMNAccessToTransit","DeferredOnlyLocationEfficiencyGreaterMN",null,null,"HTCLocationEfficiencyMetroTransitOrientedAlternatives",false]
["DeferredOnlyLocationEfficiencyGreaterMNFixedRouteStopOneHalfMile",false,4,null,null,null,null,"HTCLocationEfficiencyGreaterMNFixedRoutePublicTransportationOneQuarterMile",false,7,"HTCLocationEfficiencyGreaterMNFixedRoute","HTCLocationEfficiencyGreaterMNAccessToTransit"]
["DeferredOnlyLocationEfficiencyGreaterMNExpressOrParkAndRide",false,4,null,null,null,null,"HTCLocationEfficiencyGreaterMNFixedRoutePublicTransportationOneHalfMile",false,4]
["DeferredOnlyLocationEfficiencyGreaterMNFixedTransitWalkScore70",false,2,"DeferredOnlyLocationEfficiencyGreaterMNWalkScore",null,null,null,"HTCLocationEfficiencyGreaterMNFixedRouteExpressOrParkandRide",false,4]
["DeferredOnlyLocationEfficiencyGreaterMNFixedTransitWalkScore50",false,1,null,null,null,null,"HTCLocationEfficiencyGreaterMNFixedRouteWalkability70",false,2,null,"HTCLocationEfficiencyGreaterMNWalkability"]
["DeferredOnlyLocationEfficiencyGreaterMNDialARideServices",false,2,"DeferredOnlyLocationEfficiencyGreaterMNTransitOriented",null,null,null,"HTCLocationEfficiencyGreaterMNFixedRouteWalkability50",false,1]
["DeferredOnlyLocationEfficiencyGreaterMNNotFixedTransitWalkScore50",false,2,null,null,null,null,"HTCLocationEfficiencyGreaterMNNoFixedRouteWalkability50",false,4,"HTCLocationEfficiencyGreaterMNNoFixedRoute"]
["DeferredOnlyLocationEfficiencyGreaterMNNotFixedTransitWalkScore35",false,1,null,null,null,null,"HTCLocationEfficiencyGreaterMNNoFixedRouteWalkability35",false,3]
["DeferredOnlyUniversalDesignElevator",false,3,null,null,null,null,"HTCLocationEfficiencyGreaterMNNoFixedRouteDialARideWalkability50",false,2]
["DeferredOnlyUniversalDesignNonElevator",false,3,null,null,null,null,"HTCLocationEfficiencyGreaterMNNoFixedRouteDialARideWalkability35",false,1]
["DeferredOnlySmokeFreeBuildings",false,1,null,null,null,null,"HTCUniversalDesignElevatorBuilding",false,3]
["DeferredOnlyServesLowestIncomeTenantsOption1",false,10,"DeferredOnlyLowestIncomeTenantsOpt1thru3",null,null,null,"HTCUniversalDesignNonElevatorBuilding",false,3]
["DeferredOnlyServesLowestIncomeTenantsOption2",false,5,null,null,null,null,"HTCSmokeFreeBuildings",false,1]
["DeferredOnlyServesLowestIncomeTenantsOption3",false,3,null,null,null,null,"HTCServesLowestIncomeOption1",{"$f":"HTCServesLowestIncomeOption1NumberofUnits","v":0},10]
["DeferredOnlyServesLowestIncomeTenantsOption4",false,3,null,null,null,null,"HTCServesLowestIncomeOption2",{"$f":"HTCServesLowestIncomeOption2NumberofUnits","v":0},5]
["DeferredOnlyRentalAssistanceA",false,17,"DeferredOnlyRentalAssistanceAthruD",null,null,null,"HTCServesLowestIncomeOption3",false,3]
["DeferredOnlyRentalAssistanceB",false,13,null,null,null,null,"HTCServesLowestIncomeOption4",{"$f":"HTCServesLowestIncomeOption4NumberofUnits","v":0},3]
["DeferredOnlyRentalAssistanceC",false,10,null,null,null,null,"HTCRentalAssistanceA",false,17,"HTCRentalAssistanceAthruD"]
["DeferredOnlyRentalAssistanceD",false,6,null,null,null,null,"HTCRentalAssistanceB",false,13]
["DeferredOnlyRentalAssistanceE",false,4,"DeferredOnlyRentalAssistanceEandF",null,null,null,"HTCRentalAssistanceC",false,10]
["DeferredOnlyRentalAssistanceF",false,2,null,null,null,null,"HTCRentalAssistanceD",false,6]
["DeferredOnlyRentalAssistanceG",false,2,null,null,null,null,"HTCRentalAssistanceE",false,4,"HTCRentalAssistanceEandF"]
["DeferredOnlyQCT",false,1,null,null,null,null,"HTCRentalAssistanceF",false,2]
["DeferredOnlyMeaningfulEmployerContribution",false,2,null,null,null,null,"HTCRentalAssistanceG",false,2]
[null,null,null,null,null,null,null,"HTCQCT",false,1]
[null,null,null,null,null,null,null,"HTCCostContainment",false,4]
[null,null,null,null,null,null,null,"HTCDeferredPrivateInvestment",false,2]
[null,null,null,null,null,null,null,"HTCDeferredLTHRentalAssistance",false,10]
[null,null,null,null,null,null,null,"HTCDeferredServesLowestIncomeOption1",false,null,"HTCDeferredServesLowestIncomeTenantsOpt1thru3"]
[null,null,null,null,null,null,null,"HTCDeferredServesLowestIncomeOption2",false]
[null,null,null,null,null,null,null,"HTCDeferredServesLowestIncomeOption3",false]
[null,null,null,null,null,null,null,"HTCDeferredServesLowestIncomeOption4",false]
[null,null,null,null,null,null,null,"HTCDeferredSeniorHousing",false,25]
[null,null,null,null,null,null,null,"HTCDeferredPermanentSupportiveHousingSingleAdults",false,25]
[null,null,null,null,null,null,null,"HTCDeferredPermanentSupportiveHousingFamilies",false,25]
[null,null,null,null,null,null,null,"HTCDeferredPermanentSupportiveHousingSpecialPopulations",false,25]
[null,null,null,null,null,null,null,"HTCMeaningfulEmployerContribution",false,2]
[]
[]
[]
["CoverSheetCheckBox",false]